{"text_format":"3","workbook":"xlsx","n_sheets":5,"sheets":["Section 1-2 (P&Gs)","Section 3-30 (Labour)","Section 31 (Material) ","Summary","Trip Sheet"],"not_rendered":{"images":3},"read":"whole","date_system":"1900"}

{"sheet":"Section 1-2 (P&Gs)","index":0,"n_rows":45,"n_cols":7,"rows_kept":45,"merged":[[0,0,1,1],[2,0,2,6],[14,0,14,2],[27,0,27,2],[28,0,28,2]]}
["NCOU"]
[null,null,"Minor & Major Reticulation Rates "]
["***NOTE: supply items without  a standard rate shall be cost +10% handling fee, supplier quotes to be submitted as supporting documents"]
["Item","REF","DESCRIPTION","Unit","Qty","Labour Rate","Total"]
[1,null,"Preliminary & General"]
[1.1,null,"Site establishment "]
[null,null,"Project Manager to authorise setting up of camp. The Contractor shall establish the site camp and maintain throughout the construction period and allow for removal of such upon completion of Works and rehabilitate site."]
["1.1.1",null,"Site camp  (only when instructed/ agreed upon to establish site) To be paid with the proof of agreement","week",null,0,{"$f":"E8*F8","v":0}]
["1.1.2",null,"Staff food & accomadation (accommodation allowance is for the contractors permanent staff).","week",null,0,{"$f":"E9*F9","v":0}]
["1.1.3",null,"Supervision","day",null,0,0]
["1.1.4",null,"CLO (The Contractor need to submit Weekly Time Sheets for all hourly compensation claims and a Daily attendance register for CLO compensation claims)","day",null,0,0]
["1.1.5",null,"Security on site - 24 Hour Unarmed Security (Must be registered with the appropriate body)","week",null,0,0]
["1.1.6",null,"Risk Assessment Procedure, QM, Quality Management System, Health and Safety Specification, Environmental Plan, Safety Inspections, OHSA appointments, Non-Conformance Process to be available in office. ( Once off payment per year contract after certification ) Total Labour Value","%",{"$f":"SUM(Summary!C6:C33)","v":0},{"v":0.03,"d":"3%"},0]
["1.1.7",null,"PPE (total labour value)","%",{"$f":"SUM(Summary!C6:C33)","v":0},{"v":0.02,"d":"2%"},0]
["Total:Site establishment",{"$nulls":5},{"$f":"SUM(G8:G14)","v":0}]
[2,null,"Transport"]
[null,null,"* Note: Project Manager to authorise transport usage. Contractor to submit Invoice with a written task order from Project Manager stating on the trip sheet the purpose and details tof the trip.                                                                                                                                      *Transport of resources to and from site will be done in terms of OHS Act . The cost to the Contractor to provide safe transport for his employees should be in terms of the Construction Regulations Clause 21 (2) (a) and (i) & adhere to Eskom Life Saving rules."]
["2.1",null,"LDV Transport 4 x 2","km",null,0,{"$f":"E18*F18","v":0}]
["2.2",null,"LDV Transport 4 x 4","km",null,0,{"$f":"E19*F19","v":0}]
["2.3",null,"Transport for labour (minibus 13)","km",null,0,0]
["2.4",null,"Transport for labour (minibus 23)","km",null,0,0]
["2.5",null,"Transport truck 2 - 4 ton","km",null,0,0]
["2.6",null,"Transport truck 5 - 8 ton","km",null,0,0]
["2.7",null,"Transport truck 5 - 8 ton with crane","km",null,0,0]
["2.8",null,"Transport truck 9 - 14 ton","km",null,0,0]
["2.9",null,"Transport truck 9 - 14 ton with crane","km",null,0,0]
["2.10",null,"Transport truck >22 ton","km",null,0,0]
["Total:Transport",{"$nulls":5},{"$f":"SUM(G18:G27)","v":0}]
["Subtotal ",{"$nulls":5},{"$f":"G15+G28","v":0}]
[]
[]
[null,null,"                                Ben Mgqubeni"]
[null,null,"Project Engineer :"]
[]
[]
[]
[null,null,"Manager Design Engineering : "]
[]
[]
[]
[null,null," Program Manager:"]
[]
[]
[]
[null,null,"Contracts Manager:"]

{"sheet":"Section 3-30 (Labour)","index":1,"n_rows":669,"n_cols":7,"rows_kept":669,"merged":[[0,0,1,1],[6,0,6,2],[128,0,128,2],[160,0,160,2],[167,0,167,2],[246,0,246,2],[257,0,257,2],[267,0,267,2],[277,0,277,2],[284,0,284,2],[296,0,296,2],[318,0,318,2],[349,0,349,2],[358,0,358,2],[397,0,397,2],[413,0,413,2],[423,0,423,2],[430,0,430,2],[437,0,437,2],[509,0,509,2],[557,0,557,2],[577,0,577,2],[596,0,596,2],[605,0,605,2],[655,0,655,2]]}
["NCOU"]
[null,null,"Minor & Major Reticulation Rates "]
["Item","REF","DESCRIPTION","Unit","Qty","Labour Rate","Total"]
[3,null,"Bush Clearing & Tree Felling"]
["3.1",null,"Bush Clearing and Tree Felling (Scattered Formation)","m²",null,0,{"$f":"E5*F5","v":0}]
["3.2",null,"Bush Clearing and Tree Felling (Dense Formation)","m²",null,0,{"$f":"E6*F6","v":0}]
["Total:  Bush Clearing",{"$nulls":5},{"$f":"SUM(G5:G6)","v":0}]
[4,null,"Excavations"]
[null,null,"Note:                                                                                                                                                                                       * Authorization by Project Co-ordinator for using of Auger and Compressor to be attached to invoice.                                                                                                        * Holes to be to dimensions as per ESKOM specification "]
["4.1","D-DT-0350","LV Stay Hand","ea",null,0,{"$f":"E10*F10","v":0}]
["4.2","D-DT-0351","LV Stay Back-Actor ","ea",null,0,{"$f":"E11*F11","v":0}]
["4.3","D-DT-0350","LV Stay Compressors/Auger","ea",null,0,0]
["4.4","D-DT-0350","LV Strut Hand","ea",null,0,0]
["4.5","D-DT-0351","LV Strut Back-Actor ","ea",null,0,0]
["4.6","D-DT-0350","LV Strut Compressors/Auger","ea",null,0,0]
["4.7","D-DT-0350","MV Stay Hand ","ea",null,0,0]
["4.8","D-DT-0351","MV Stay Back-Actor","ea",null,0,0]
["4.9","D-DT-0350","MV Stay Compressors/Auger","ea",null,0,0]
["4.10","D-DT-0350","MV Strut Hand","ea",null,0,0]
["4.11","D-DT-0351","MV Strut Back-Actor ","ea",null,0,0]
["4.12","D-DT-0350","MV Strut Compressors/Auger","ea",null,0,0]
["4.13","D-DT-0330","5m Pole Wood Hand (1.0m Deep)","ea",null,0,0]
["4.14","D-DT-0331","5m Pole Wood Back-Actor(1.0m Deep)","ea",null,0,0]
["4.15","D-DT-0330","5m Pole Wood Compressors /Auger(1.0m Deep)","ea",null,0,0]
["4.16","D-DT-0330","6m Pole Wood Hand (1.0m Deep)","ea",null,0,0]
["4.17","D-DT-0331","6m Pole Wood Back-Actor (1.0m Deep)","ea",null,0,0]
["4.18","D-DT-0330","6m Pole Wood Compressors /Auger(1.0m Deep)","ea",null,0,0]
["4.19","D-DT-0330","7m Pole Wood Hand (1.3m Deep)","ea",null,0,0]
["4.20","D-DT-0331","7m Pole Wood Back-Actor (1.3m Deep)","ea",null,0,0]
["4.21","D-DT-0330","7m Pole Wood Compressors /Auger(1.3m Deep)","ea",null,0,0]
["4.22","D-DT-0330","7m Pole Wood Hand (1.8m Deep)","ea",null,0,0]
["4.23","D-DT-0331","7m Pole Wood Back-Actor (1.8m Deep)","ea",null,0,0]
["4.24","D-DT-0330","7m Pole Wood Compressors /Auger(1.8m Deep)","ea",null,0,0]
["4.25","D-DT-0330","8m Pole Wood Hand (1.8m Deep)","ea",null,0,0]
["4.26","D-DT-0331","8m Pole Wood Back-Actor (1.8m Deep)","ea",null,0,0]
["4.27","D-DT-0330","8m Pole Wood Compressors /Auger(1.8m Deep)","ea",null,0,0]
["4.28","D-DT-0330","9m Pole Wood Hand (1.5m Deep)","ea",null,0,0]
["4.29","D-DT-0331","9m Pole Wood Back-Actor (1.5m Deep)","ea",null,0,0]
["4.30","D-DT-0330","9m Pole Wood Compressors /Auger(1.5m Deep)","ea",null,0,0]
["4.31","D-DT-0330","9m Pole Wood Hand (1.8m Deep)","ea",null,0,0]
["4.32","D-DT-0331","9m Pole Wood Back-Actor (1.8m Deep)","ea",null,0,0]
["4.33","D-DT-0330","9m Pole Wood Compressors /Auger(1.8m Deep)","ea",null,0,0]
["4.34","D-DT-0330","10m Pole Wood Hand (1.7m Deep)","ea",null,0,0]
["4.35","D-DT-0331","10m Pole Wood Back-Actor (1.7m Deep)","ea",null,0,0]
["4.36","D-DT-0330","10m Pole Wood Compressors /Auger(1.7m Deep)","ea",null,0,0]
["4.37","D-DT-0330","11m Pole Wood Hand (1.8m Deep)","ea",null,0,0]
["4.38","D-DT-0331","11m Pole Wood Back-Actor (1.8m Deep)","ea",null,0,0]
["4.39","D-DT-0330","11m Pole Wood Auger (1.8m Deep)","ea",null,0,0]
["4.40","D-DT-0330","12m Pole Wood Hand (2.0m Deep)","ea",null,0,0]
["4.41","D-DT-0331","12m Pole Wood Back-Actor (2.0m Deep)","ea",null,0,0]
["4.42","D-DT-0330","12m Pole Wood Compressors/Auger (2.0m Deep)","ea",null,0,0]
["4.43","D-DT-0330","13m - 16m Pole Wood Hand (2.2m Deep)","ea",null,0,0]
["4.44","D-DT-0331","13m - 16m Pole Wood Back-Actor (2.2m Deep)","ea",null,0,0]
["4.45","D-DT-0330","13m - 16m Pole Wood Compressors (2.2m Deep)","ea",null,0,0]
["4.46","D-DT-0330","18m Pole Wood Hand (2.4m Deep)","ea ",null,0,0]
["4.47","D-DT-0331","18m Pole Wood Back-Actor (2.4m Deep)","ea ",null,0,0]
["4.48","D-DT-0330","18m Pole Wood Auger (2.4m Deep)","ea",null,0,0]
["4.49","D-DT-0330","11m Pole Concrete Hand (1.8m Deep)","ea",null,0,0]
["4.50","D-DT-0331","11m Pole Concrete Back-Actor (1.8m Deep)","ea",null,0,0]
["4.51","D-DT-0330","11m Pole Concrete Compressors/Auger (1.8m Deep)","ea",null,0,0]
["4.52","D-DT-0330","12m Pole Concrete Hand (2m Deep)","ea",null,0,0]
["4.53","D-DT-0331","12m Pole Concrete Back-Actor (2m Deep)","ea",null,0,0]
["4.54","D-DT-0330","12m Pole Concrete Compressors/Auger (2m Deep)","ea",null,0,0]
["4.55","D-DT-0330","13m Pole Concrete Hand (2.2m Deep)","ea",null,0,0]
["4.56","D-DT-0331","13m Pole Concrete Back-Actor (2.2m Deep)","ea",null,0,0]
["4.57","D-DT-0330","13m Pole Concrete Compressors/Auger (2.2m Deep)","ea",null,0,0]
["4.58","D-DT-0330","14m Pole Concrete Hand (2.3m Deep)","ea",null,0,0]
["4.59","D-DT-0331","14m Pole Concrete Back-Actor (2.3m Deep)","ea",null,0,0]
["4.60","D-DT-0330","14m Pole Concrete Compressors/Augor (2.3m Deep)","ea",null,0,0]
[4.61,null,"Blasting (Irrespective of depth of hole, each hard rock hole to be verified by Eskom's Clerk of Works)"]
["4.61.1","D-DT-0350","LV Stay ","ea",null,0,{"$f":"E71*F71","v":0}]
["4.61.2","D-DT-0350","LV Strut ","ea",null,0,0]
["4.61.3","D-DT-0350","MV Stay ","ea",null,0,0]
["4.61.4","D-DT-0350","MV Strut ","ea",null,0,0]
["4.61.5","D-DT-0330","5m Pole Wood ","ea",null,0,0]
["4.61.6","D-DT-0330","6m Pole Wood ","ea",null,0,0]
["4.61.7","D-DT-0330","7m Pole Wood ","ea",null,0,0]
["4.61.8","D-DT-0330","8m Pole Wood ","ea",null,0,0]
["4.61.9","D-DT-0330","9m Pole Wood ","ea",null,0,0]
["4.61.10","D-DT-0330","10m Pole Wood ","ea",null,0,0]
["4.61.11","D-DT-0330","11m Pole Wood","ea",null,0,0]
["4.61.12","D-DT-0330","12m Pole Wood ","ea",null,0,0]
["4.61.13","D-DT-0330","13m - 16m Pole Wood ","ea",null,0,0]
["4.61.14","D-DT-0330","18m Pole Wood ","ea",null,0,0]
["4.61.15","D-DT-0330","11m Pole Concrete ","ea",null,0,0]
["4.61.16","D-DT-0330","12m Pole Concrete","ea",null,0,0]
["4.61.17","D-DT-0330","13m Pole Concrete ","ea",null,0,0]
["4.61.18","D-DT-0330","14m Pole Concrete ","ea",null,0,0]
[4.62,null,"Rock drilling (Irrespective of depth of hole, each hole to be verified by Eskom's Clerk of Works)"]
["4.62.1","D-DT-0350","LV Stay ","ea",null,0,{"$f":"E90*F90","v":0}]
["4.62.2","D-DT-0350","LV Strut ","ea",null,0,0]
["4.62.3","D-DT-0350","MV Stay ","ea",null,0,0]
["4.62.4","D-DT-0350","MV Strut ","ea",null,0,0]
["4.62.5","D-DT-0330","5m Pole Wood ","ea",null,0,0]
["4.62.6","D-DT-0330","6m Pole Wood ","ea",null,0,0]
["4.62.7","D-DT-0330","7m Pole Wood ","ea",null,0,0]
["4.62.8","D-DT-0330","8m Pole Wood ","ea",null,0,0]
["4.62.9","D-DT-0330","9m Pole Wood ","ea",null,0,0]
["4.62.10","D-DT-0330","10m Pole Wood ","ea",null,0,0]
["4.62.11","D-DT-0330","11m Pole Wood","ea",null,0,0]
["4.62.12","D-DT-0330","12m Pole Wood ","ea",null,0,0]
["4.62.13","D-DT-0330","13m - 16m Pole Wood ","ea",null,0,0]
["4.62.14","D-DT-0330","18m Pole Wood ","ea",null,0,0]
["4.62.15","D-DT-0330","11m Pole Concrete ","ea",null,0,0]
["4.62.16","D-DT-0330","12m Pole Concrete","ea",null,0,0]
["4.62.17","D-DT-0330","13m Pole Concrete ","ea",null,0,0]
["4.62.18","D-DT-0330","14m Pole Concrete ","ea",null,0,0]
[4.63,null,"Excavate using a jack hammer and compressor  (Irrespective of depth of hole, each hole to be verified by Eskom's Clerk of Works)"]
["4.63.1","D-DT-0350","LV Stay ","ea",null,0,{"$f":"E109*F109","v":0}]
["4.63.2","D-DT-0350","LV Strut ","ea",null,0,0]
["4.63.3","D-DT-0350","MV Stay ","ea",null,0,0]
["4.63.4","D-DT-0350","MV Strut ","ea",null,0,0]
["4.63.5","D-DT-0330","5m Pole Wood ","ea",null,0,0]
["4.63.6","D-DT-0330","6m Pole Wood ","ea",null,0,0]
["4.63.7","D-DT-0330","7m Pole Wood ","ea",null,0,0]
["4.63.8","D-DT-0330","8m Pole Wood ","ea",null,0,0]
["4.63.9","D-DT-0330","9m Pole Wood ","ea",null,0,0]
["4.63.10","D-DT-0330","10m Pole Wood ","ea",null,0,0]
["4.63.11","D-DT-0330","11m Pole Wood","ea",null,0,0]
["4.63.12","D-DT-0330","12m Pole Wood ","ea",null,0,0]
["4.63.13","D-DT-0330","13m - 16m Pole Wood ","ea",null,0,0]
["4.63.14","D-DT-0330","18m Pole Wood ","ea",null,0,0]
["4.63.15","D-DT-0330","11m Pole Concrete ","ea",null,0,0]
["4.63.16","D-DT-0330","12m Pole Concrete","ea",null,0,0]
["4.63.17","D-DT-0330","13m Pole Concrete ","ea",null,0,0]
["4.63.18","D-DT-0330","14m Pole Concrete ","ea",null,0,0]
[null,null,"Hip Stay Foundation ","ea"]
[4.64,"D-DT-0344","Hip Stay Foundation Hole 1500 x 1500 x 1800mm","ea",null,0,{"$f":"E128*F128","v":0}]
["Total Excavations",{"$nulls":5},{"$f":"SUM(G10:G128)","v":0}]
[5,null,"Plant Poles"]
["5.1","D-DT-0058","5m Wood 80-100mm tops","ea",null,0,{"$f":"E131*F131","v":0}]
["5.2","D-DT-0066","6m Wood 120-139mm tops","ea",null,0,{"$f":"E132*F132","v":0}]
["5.3","D-DT-0050","7m Wood 120-139mm tops","ea",null,0,0]
["5.4","D-DT-0065","8m Wood 140-159mm tops ","ea",null,0,0]
["5.5","D-DT-0055","9m Wood 140-159mm tops ","ea",null,0,0]
["5.6","D-DT-0055","9m Wood 160-179mm tops ","ea",null,0,0]
["5.7","D-DT-0055","9m Wood  180-199 mm tops","ea",null,0,0]
["5.8","D-DT-0052","10m Wood  160-179 mm tops","ea",null,0,0]
["5.9","D-DT-0052","10m Wood  180-199 mm tops","ea",null,0,0]
["5.10","D-DT-0051","11m Wood 160-179mm tops","ea",null,0,0]
["5.11","D-DT-0051","11m Wood 180-199mm tops","ea",null,0,0]
["5.12","D-DT-0051","11m Wood 200-219mm tops","ea",null,0,0]
["5.13","D-DT-0053","12m Wood 160-179mm tops ","ea",null,0,0]
["5.14","D-DT-0053","12m Wood 180-199mm tops ","ea",null,0,0]
["5.15","D-DT-0053","12m Wood 200-219mm tops ","ea",null,0,0]
["5.16","D-DT-0056","13m Wood 160-179mm tops ","ea",null,0,0]
["5.17","D-DT-0056","13m Wood 180-199mm tops ","ea",null,0,0]
["5.18","D-DT-0056","13m Wood 200-219mm tops ","ea",null,0,0]
["5.19","D-DT-0054","14m Wood 160-179mm tops ","ea",null,0,0]
["5.20","D-DT-0054","14m Wood 180-199mm tops ","ea",null,0,0]
["5.21","D-DT-0054","14m Wood 200-219mm tops ","ea",null,0,0]
["5.22","D-DT-0057","15m Wood 200-219mm tops ","ea",null,0,0]
["5.23","D-DT-0049","16m Wood 180-199mm tops ","ea",null,0,0]
["5.24","D-DT-0049","16m Wood 200-219mm tops ","ea",null,0,0]
["5.25","D-DT-0048","18m Wood 180-199mm tops ","ea",null,0,0]
["5.26","D-DT-0048","18m Wood 200-219mm tops ","ea",null,0,0]
["5.27","D-DT-0017","11m Concrete Pole 10kN Ultimate Load","ea",null,0,0]
["5.28","D-DT-0015","12m Concrete Pole 10kN Ultimate Load","ea",null,0,0]
["5.29","D-DT-0016","13m Concrete Pole 10kN Ultimate Load","ea",null,0,0]
["5.30","D-DT-0018","14m Concrete Pole 10kN Ultimate Load","ea",null,0,0]
["Total:Plant Poles",{"$nulls":5},{"$f":"SUM(G131:G160)","v":0}]
[6,null,"Stay  Install & Assemble MV Stays complete"]
[null,null,"(Incl backfilling but excluding excavations)"]
["6.1","D-DT-0341","1 Off conv anchor","ea",null,0,{"$f":"E164*F164","v":0}]
["6.2","D-DT-0351","1 Off strut pole  excl pole & planting of pole","ea",null,0,{"$f":"E165*F165","v":0}]
["6.3","D-DT-0343","1 Off flying stay excl pole & planting of pole","ea",null,0,0]
["6.4","D-DT-0344","Hip Stay Short Stay (12 Pockets of cement)","ea",null,0,0]
["Total:Stay  Install & Assemble MV Stays complete ",{"$nulls":5},{"$f":"SUM(G164:G167)","v":0}]
[7,null,"Assemble MV Structures "]
[null,null,"All types"]
["7.1","D-DT-0400","SWER – Intermediate - 0° Deviation ","ea",null,0,{"$f":"E171*F171","v":0}]
["7.2","D-DT-0401","SWER – Intermediate Small (1-10°) Deviation ","ea",null,0,{"$f":"E172*F172","v":0}]
["7.3","D-DT-0402","SWER - Suspension Medium (10-30°) Deviation","ea",null,0,0]
["7.4","D-DT-0403","SWER - Strain 0° Deviation","ea",null,0,0]
["7.5","D-DT-0404","SWER – Strain Small (1-30°) Deviation ","ea",null,0,0]
["7.6","D-DT-0406","SWER – Strain Large (30-90°) Deviation ","ea",null,0,0]
["7.7","D-DT-0407","SWER – Strain Terminal ","ea",null,0,0]
["7.8","D-DT-0410","SWER – Intermediate With Earth Wire - 0° Deviation ","ea",null,0,0]
["7.9","D-DT-0411","SWER – Intermediate With Earth Wire Small (1-10°) Deviation ","ea",null,0,0]
["7.10","D-DT-0413","SWER - Suspension With Earth Wire Medium (10-30°) Deviation","ea",null,0,0]
["7.11","D-DT-0414","SWER - Strain With Earth Wire 0° Deviation","ea",null,0,0]
["7.12","D-DT-0416","SWER – Strain With Earth Wire Small (1-30°) Deviation ","ea",null,0,0]
["7.13","D-DT-0417","SWER – Strain With Earth Wire Large (30-90°) Deviation ","ea",null,0,0]
["7.14","D-DT-1870","3 Phase Delta 2m Steel crossarm intermediate 0deg deviation","ea",null,0,0]
["7.15","D-DT-1870","3 Phase - T/frame / 2m steel Crossarm - intermediate - 0˚ Deviation - With Spark Gap device ","ea",null,0,0]
["7.16","D-DT-1871","3 Phase Delta 2m Steel crossarm intermediate (1°-10°) deg Deviation","ea",null,0,0]
["7.17","D-DT-1740","3 Phase - Delta / 2,5m Wood Crossarm - Intermidiate- 0° Deviation ","ea",null,0,0]
["7.18","D-DT-1740","3 Phase - Delta / 2,5m Wood Crossarm – Intermediate - 0° Deviation -With Spark Gap Device","ea",null,0,0]
["7.19","D-DT-1743","3 Phase Delta 2.5m crossarm strain 0deg deviation","ea",null,0,0]
["7.20","D-DT-1744","3 Phase - Delta / 2,5m Wood Crossarm - Strain - Medium (1°-60°) Deviation","ea",null,0,0]
["7.21","D-DT-1745 1 of 4","3 Phase - Delta 2 x 2,5m Wood Crossarm / 1700 Steel Crossarm - Strain (60°-90°) Dev (Mink and Hare)","ea",null,0,0]
["7.22","D-DT-1745 2 of 4","3 Phase - Delta 2 x 2,5m Wood Crossarm / 2 x 2,5m Wood Crossarm - Strain (60°-90°) Dev (Mink and Hare)","ea",null,0,0]
["7.23","D-DT-1745 3 of 4","3 Phase - Delta 1 x 2,5m Wood Crossarm / 1700 Steel Crossarm - Strain (60°-90°) Dev (Fox and 35)","ea",null,0,0]
["7.24","D-DT-1745 4 of 4","3 Phase - Delta 1 x 2,5m Wood Crossarm / 1 x 2,5m Wood Crossarm - Strain (60°-90°) Dev (Fox and 35)","ea",null,0,0]
["7.25","D-DT-1746","3 Phase Delta 2.5m Wood Crossarm - Strain-Terminal","ea",null,0,0]
["7.26","D-DT-1747","3 Phase - Delta 2 X 2,5M  Wood Crossarm  - Strain - 0° Deviation ","ea",null,0,0]
["7.27","D-DT-1748","3 Phase - Delta 2 X 2,5M  Wood Crossarm  - Strain(1°-60°) ","ea",null,0,0]
["7.28","D-DT-1749","3 Phase - Delta 2 X 2,5M  Wood Wood Crossarm - Strain-Terminal","ea",null,0,0]
["7.29","D-DT-1750","3 Phase - Delta / 4,5m Wood Crossarm - Intermediate -  0° Deviation","ea",null,0,0]
["7.30","D-DT-1750","3 Phase - Delta / 4,5m Wood Crossarm - Intermediate -  0° Deviation - With Spark Gap Device","ea",null,0,0]
["7.31","D-DT-1753","3 Phase - Delta / 4,5m Wood Crossarm - Strain -  0° Deviation","ea",null,0,0]
["7.32","D-DT-1754","3 Phase - Delta / 4,5m Wood Crossarm - Medium (1°-60°) Deviation","ea",null,0,0]
["7.33","D-DT-1754","3 Phase - Delta / 2 x 4,5m Wood Crossarm - Medium (1°-60°) Deviation","ea",null,0,0]
["7.34","D-DT-1756","3 Phase - Delta / 4,5m Wood Crossarm - Strain -Terminal","ea",null,0,0]
["7.35","D-DT-1760","3 Phase - H-Pole / 3,5m Wood Crossarm - Intermediate -  0° Deviation","ea",null,0,0]
["7.36","D-DT-1760","3 Phase - H-Pole / 3,5m Wood Crossarm - Intermediate -  0° Deviation - With Spark Gap Device","ea",null,0,0]
["7.37","D-DT-1763","3 Phase H-Pole  3.5m Wooden Crossarm - Strain - 0° Deviation","ea",null,0,0]
["7.38","D-DT-1764","3 Phase H-Pole 3.5m Wooden Crossarm - Strain - (1 -60°) Deviation","ea",null,0,0]
["7.39","D-DT-1766","3 Phase H-Pole 3.5m Wooden Crossarm - Terminal","ea",null,0,0]
["7.40","D-DT-1767","3 Phase H-Pole 2 X 3.5m Wooden Crossarm - Strain - 0° Deviation","ea",null,0,0]
["7.41","D-DT-1768","3 Phase H-Pole 2 X 3.5m wooden crossarm Strain - Medium (1 -60°) deg deviation","ea",null,0,0]
["7.42","D-DT-1769","3 Phase H-Pole 2 X 3.5m Wooden Crossarm - Strain - Terminal","ea",null,0,0]
["7.43","D-DT-1770","3 Phase - H-Pole / 4,5m Wood Crossarm - Intermediate - 0° Deviation","ea",null,0,0]
["7.44","D-DT-1771","3 Phase - H-Pole / 4,5m Wood Crossarm - Intermediate - (1 -10°) Deviation","ea",null,0,0]
["7.45","D-DT-1773","3 Phase - H-Pole / 4,5m Wood Crossarm- Strain - 0° Deviation ","ea",null,0,0]
["7.46","D-DT-1774","3 Phase - H-Pole / 4,5m Wood Crossarm- Strain - (1 -60°) Deviation","ea",null,0,0]
["7.47","D-DT-1776","3 Phase - H-Pole / 4,5m Wood Crossarm- Strain - Terminal","ea",null,0,0]
["7.48","D-DT-1777","3 Phase H-Pole 2 X 4.5m Wooden Crossarm - Strain - 0° Deviation","ea",null,0,0]
["7.49","D-DT-1778 ","3 Phase H-Pole 2 X 4.5m Wooden Crossarm - Strain - (1°-60°) Deviation","ea",null,0,0]
["7.50","D-DT-1778 ","3 Phase H-Pole 2 X 4.5m Wooden Crossarm - Strain - (61°-90°) Deviation","ea",null,0,0]
["7.51","D-DT-1779 ","3 Phase H-Pole 2 X 4.5m Wooden Crossarm - Strain - terminal","ea",null,0,0]
["7.52","D-DT-1783","3 Phase - Trips - Strain - 0° Deviation","ea",null,0,0]
["7.53","D-DT-1784","3 Phase - Trips - Strain - Large (1-90°) Deviation","ea",null,0,0]
["7.54","D-DT-1790","MV Heavy Conductor - 3 Phase - Delta - 3500mm Wooden Crossarm - Intermediate -  0° Deviation","ea",null,0,0]
["7.55","D-DT-1793","MV Heavy Conductor - 22kV H-Pole Suspension Structure General Arrangement","ea",null,0,0]
["7.56","D-DT-1794","MV Heavy Conductor - 22kV H-Pole Braced - In-Line Strain","ea",null,0,0]
["7.57","D-DT-1795","MV Heavy Conductor - 22kV H-Pole Braced - Angle Strain (1-60°) Deviation  ","ea",null,0,0]
["7.58","D-DT-1796","MV Heavy Conductor - 22kV H-Pole Braced - Terminal ","ea",null,0,0]
["7.59","D-DT-1873","3 Phase H-Pole 2 X 4.5m Wooden Crossarm - Strain - Large (61 - 90°) Deviation","ea",null,0,0]
["7.60","D-DT-0450 1 of 2","SWER - Take-Off from Intermediate and from Strain","ea",null,0,0]
["7.61","D-DT-0450 2 of 2","SWER - Take-Off from Intermediate Post Insulator on top","ea",null,0,0]
["7.62","D-DT-0451 1 of 2","SWER - Take-Off With Earthwire from Intermediate and from Strain","ea",null,0,0]
["7.63","D-DT-0451 2 of 2","SWER - Take-Off With Earthwire from Intermediate Post Insulator on top","ea",null,0,0]
["7.64","D-DT-1801","3 Phase Take-OFF - Vertical (600mm Spacing)","ea",null,0,0]
["7.65","D-DT-1804","3 Phase Delta Take-Off 2.5M wooden Crossarm","ea",null,0,0]
["7.66","D-DT-1805","3 Phase Take-Off - 2 X 2.5M Wooden Crossarm","ea",null,0,{"$f":"E236*F236","v":0}]
["7.67","D-DT-1806","3 Phase Take-Off - H-Pole 3.5M Wooden Crossarm","ea",null,0,0]
["7.68","D-DT-1807","3 Phase Take-Off - H-Pole 2 X 3.5M Wooden Crossarm","ea",null,0,0]
["7.69","D-DT-1814 ","Phase /phase Take-Off - H-Pole 2.5M Wooden Crossarm","ea",null,0,0]
["7.70","D-DT-1340","Phase / phase – Delta/2.5M Wooden Crossarm –Strain - 0° ","ea",null,0,0]
["7.71","D-DT-1340","Phase / Phase - Delta / 2,5m Wood Crossarm - Intermediate - 0° Deviation - With Spark Gap Device","ea",null,0,0]
["7.72","D-DT-1343","Phase / phase – Delta/2.5M Wooden Crossarm –Strain - 0° Deviation ","ea",null,0,0]
["7.73","D-DT-1344","Phase / phase – Delta/2.5M Wooden Crossarm –Strain - Medium (1-60°) Deviation ","ea",null,0,0]
["7.74","D-DT-1346","Phase / phase – Delta/2.5M Wood Crossarm – Strain - Terminal ","ea",null,0,0]
["7.75","D-DT-1390","Phase / Phase - T-Frame / 2m Steel Crossarm - Intermediate - 0° Deviation - With Spark Gap Device  ","ea",null,0,0]
["7.76","D-DT-1391","Phase / Phase - T-Frame / 2m Steel Crossarm - Intermediate - Small (1°-±10°) Deviation - With Spark Gap Device  ","ea",null,0,0]
["Total:Assemble MV Structures ",{"$nulls":5},{"$f":"SUM(G171:G246)","v":0}]
[8,null,"Assemble LV Structures"]
["8.1",null,"Single Phase"]
["8.1.1","D-DT-1153","LV 1 phase insulated/bare neutral ABC Suspension Assembly (0°- 30°) ","ea",null,0,{"$f":"E250*F250","v":0}]
["8.1.2","D-DT-1154","LV 1 phase insulated/bare neutral  ABC Terminal Assembly ","ea",null,0,{"$f":"E251*F251","v":0}]
["8.1.3","D-DT-1155","LV 1 phase insulated/bare neutral  ABC Strain Assembly (0°- 60°) ","ea",null,0,0]
["8.1.4","D-DT-1156","LV 1 phase insulated/bare neutral LV 2 phase bare neutral (60°- 90°)","ea",null,0,0]
["8.1.5","D-DT-1157","LV 1 phase insulated/bare neutral ABC T from Intermediate ","ea",null,0,0]
["8.1.6","D-DT-1158","LV 1 phase insulated/bare neutral ABC Cross Intermediate Suspension Assembly ","ea",null,0,0]
["8.1.7","D-DT-1159","LV 1 phase insulated/bare neutral ABC T from Strain ","ea",null,0,0]
["8.1.8","D-DT-1160","LV 1 phase insulated/bare neutral ABC X Intermediate-Strain Assembly ","ea",null,0,0]
["Total:Single Phase",{"$nulls":5},{"$f":"SUM(G250:G257)","v":0}]
["8.2",null,"Dual Phase"]
["8.2.1","D-DT-1145","LV 2 phase insulated/bare neutral ABC Suspension Assembly (0°- 30°) ","ea",null,0,{"$f":"E260*F260","v":0}]
["8.2.2","D-DT-1146","LV 2 phase insulated/bare neutral LABC Terminal Assembly ","ea",null,0,{"$f":"E261*F261","v":0}]
["8.2.3","D-DT-1147","LV 2 phase insulated/bare neutral ABC Strain Assembly (0° - 60°) ","ea",null,0,0]
["8.2.4","D-DT-1148","LV 2 phase insulated/bare neutral ABC Strain Assembly (60° - 90°) ","ea",null,0,0]
["8.2.5","D-DT-1149","LV 2 phase insulated/bare neutral ABC T from Intermediate ","ea",null,0,0]
["8.2.6","D-DT-1150","LV 2 phase insulated/bare neutral ABC Intermediate Suspension Assembly ","ea",null,0,0]
["8.2.7","D-DT-1151","LV 2 phase insulated/bare neutral ABC T from Strain ","ea",null,0,0]
["8.2.8","D-DT-1152","LV 2 phase insulated/bare neutral ABC X Intermediate-Strain Assembly ","ea",null,0,0]
["Total: Dual Phase",{"$nulls":5},{"$f":"SUM(G260:G267)","v":0}]
["8.3",null,"Three Phase"]
["8.3.1","D-DT1100","LV 3 phase insulated/bare neutral ABC Suspension Assembly (0° - 30°)  ","ea",null,0,{"$f":"E270*F270","v":0}]
["8.3.2","D-DT1120","LV 3 phase insulated/bare neutral LABC Terminal Assembly ","ea",null,0,{"$f":"E271*F271","v":0}]
["8.3.3","D-DT1121","LV 3 phase insulated/bare neutral ABC Strain Assembly (0° - 60°)","ea",null,0,0]
["8.3.4","D-DT1122","LV 3 phase insulated/bare neutral ABC Strain Assembly (60° - 90°) ","ea",null,0,0]
["8.3.5","D-DT1140","LV 3 phase insulated/bare neutral  ABC T from Intermediate","ea",null,0,0]
["8.3.6","D-DT1141","LV 3 phase insulated/bare neutral ABC Intermediate Suspension Assembly ","ea",null,0,0]
["8.3.7","D-DT1142","LV 3 phase insulated/bare neutral ABC T from Strain","ea",null,0,0]
["8.3.8","D-DT1143","LV 3 phase insulated/bare neutral ABC X Intermediate-Strain Assembly ","ea",null,0,0]
["Total: Threel Phase",{"$nulls":5},{"$f":"SUM(G270:G277)","v":0}]
[9,null,"Install & assemble LV Stays complete"]
[null,null,"(Incl backfilling but excluding excavations)"]
["9.1","D-DT-0341","A. 1 Off Conv Anchor","ea",null,0,{"$f":"E281*F281","v":0}]
["9.2","D-DT-0343","C. Conventional stay for 1 off Flying Stay","ea",null,0,{"$f":"E282*F282","v":0}]
["9.3","D-DT-0342","E. 1 Off strut pole 7m & 9m","ea",null,0,0]
["9.4","D-DT-0357","I.  1 Off rock anchor","ea",null,0,0]
["Total:Install & assemble LV Stays complete",null,null," ",null,null,{"$f":"SUM(G281:G284)","v":0}]
[10,null,"Pole Top & secure pole top metering kiosks Installation (Smart Metering)"]
["10.1","D-DT-3055 ","BOX DISTR:POLE TOP SPLIT METER 8-WAY 20A","ea",null,0,{"$f":"E287*F287","v":0}]
["10.2","D-DT-3055 ","BOX DISTR:POLE TOP SPLIT METER 4-WAY 20A","ea",null,0,{"$f":"E288*F288","v":0}]
["10.3","D-DT-3055 ","BOX DISTR:POLE TOP SPLIT METER 2-WAY 20A","ea",null,0,0]
["10.4","D-DT-3055 ","BOX DISTR:POLETOP SPLIT METER 4-WAY 60A","ea",null,0,0]
["10.5","D-DT-3055 ","BOX DISTR:POLE TOP SPLITMETER 2-WAY 60A","ea",null,0,0]
["10.6","D-DT-3055 ","BOX DISTR:POLETOP SPLIT METER 6-WAY 20A","ea",null,0,0]
["10.7","D-DT-3055 ","BOX DISTR:POLETOP SPLIT METER 6-WAY 60A","ea",null,0,0]
[10.12,"D-DT-3236","Kiosk meter: 1ph; 4.6 kVA; secure; pole mount (for 2, 4, 6 or 8 way)","ea",null,0,0]
[10.13,"D-DT-3236","Kiosk meter: 1ph; 14 kVA; secure; pole mount (for 2, 4, 6 or 8 way)","ea",null,0,0]
[10.14,"D-DT-1034","Kiosk meter: 1ph; RAT/DC; secure; pole mount (Data Concentrator)","ea",null,0,0]
["Total:Pole Top & secure pole top metering kiosks Installation (Smart Metering)",{"$nulls":5},{"$f":"SUM(G287:G296)","v":0}]
[11,null,"Conductor Stringing (Tension, Regulate & Bind In)"]
[null,null,"Install Eskom issued marked conductor. Installation includes handling, stringing and final sagging. This includes both greased and non greased conductors.   "]
["11.1","D-DT-3136","Fox Conductor 1-Phase","m",null,0,{"$f":"E300*F300","v":0}]
["11.2",null,"Fox Full Tension Joint*","ea",null,0,{"$f":"E301*F301","v":0}]
["11.3","D-DT-3136","Mink Conductor 1-Phase","m",null,0,0]
["11.4",null,"Mink Full Tension Joint*","ea",null,0,0]
["11.5","D-DT-3136","Hare Conductor 1-Phase","m",null,0,0]
["11.6",null,"Hare Full Tension Joint*","ea",null,0,0]
["11.7","D-DT-3136","Chickadee Conductor 1-Phase","m",null,0,0]
["11.8",null,"Chickadee Full Tension Joint*","ea",null,0,0]
["11.9","D-DT-3136","King Bird Conductor 1-Phase","m",null,0,0]
["11.10",null,"King Bird Full Tension Joint*","ea",null,0,0]
["11.11","D-DT-3141","35mm sq Full Tension Joint*","m",null,0,0]
["11.12","D-DT-3141","35 mm sq ABC 1-phase","m",null,0,0]
["11.13","D-DT-3141","35 mm sq ABC 2- phase","m",null,0,0]
["11.14","D-DT-3141","35 mm sq ABC 3-phase","m",null,0,0]
["11.15","D-DT-3141","70mm sq Full Tension Joint*","m",null,0,0]
["11.16","D-DT-3141","70 mm sq ABC  1-phase","m",null,0,0]
["11.17","D-DT-3141","70 mm sq ABC  2-phase","m",null,0,0]
["11.18","D-DT-3141","70 mm sq ABC  3-phase","m",null,0,0]
["11.19","D-DT-3140","Concentric   Cable","m",null,0,0]
["Total:Conductor Stringing (Tension, Regulate & Bind In)",{"$nulls":5},{"$f":"SUM(G300:G318)","v":0}]
[null,null,"OVERHEAD EQUIPMENT INSTALLATION ( 12, 13, 14, 15, 16)"]
[null,null,"Install Transformer/Recloser/Voltage Regulator/MV Metering Units as per relevant Eskom DDT 1800 Series Assembly Drawing and OU Specific SI Engineering Instructions. All Auxiliary Equipment to include  Station and Distribution MV, LV Surge Arrestors, Control Boxes, Metering Kiosks, Jumper Terminations, Anti Climbing Devices , LDPE Pipe Covered Jumpers as per 02TB-023 and Danger Labels, Channel Irons, Cradles, Standoff Insulators, Conductor Busbars and suitable Equipment Labels & X Arms. Pole Planting, Stays, Struts, Isolators Earthing Material and Excavations are elsewhere measured. Transformers/Reclosers/Voltage Regulators and MV Metering Units will be Eskom Free Issue Material.  Main Line Structures and Auxiliary Equipment are elsewhere measured. All material purchased will be paid elsewhere as cost plus fee."]
[12,null,"Installing of transformers and Structures"]
["12.1","D-DT-3021","Install Transformer - 32kVA x 2-Phase ","ea",null,0,{"$f":"E323*F323","v":0}]
["12.2","D-DT-3021","Install Transformer - 64kVA x 2-Phase ","ea",null,0,{"$f":"E324*F324","v":0}]
["12.3","D-DT-3021","Install Transformer - 16kVA x 1-Phase ","ea",null,0,0]
["12.4","D-DT-3021","Install Transformer - 25kVA x 3-Phase","ea",null,0,0]
["12.5","D-DT-3021","Install Transformer - 50kVA x 3-Phase ","ea",null,0,0]
["12.6","D-DT-3021","Install Transformer - 100kVA x 3-Phase ","ea",null,0,0]
["12.7","D-DT-3021","Install Transformer - 200kVA x 3-Phase ","ea",null,0,0]
["12.8","D-DT-3021","Install Transformer - 315kVA x 3-Phase ","ea",null,0,0]
["12.9","D-DT-3021","Install Transformer - 500kVA x 3-Phase ","ea",null,0,0]
["12.10","D-DT-0420","SWER - Single Pole-mounted Isolation Transformer ","ea",null,0,0]
["12.11","D-DT-0421","SWER - 4 Pole-mounted Isolation Transformer ","ea",null,0,0]
["12.12","D-DT-0460","SWER - Single Pole-mounted Isolation Transformer Substation Auxiliary","ea",null,0,0]
["12.13","D-DT-0461","SWER - H-pole mounted Isolation Transformer Substation Auxiliary","ea",null,0,0]
["12.14","D-DT-0462","SWER-Distribution Transformer (16 or 32kVA)","ea",null,0,0]
["12.15","D-DT-0463","SWER-Back-to-Back 64kVA Dual Phase Supply from a 19kV SWER Line","ea",null,0,0]
["12.16","D-DT-1860","Install Single Pole Mounted Transformer (5-100kVA) Structure","ea",null,0,0]
["12.17","D-DT-1861","Install 2-Pole Platform Mounted (H-Pole)Transformer (100-200kVA) Structure","ea",null,0,0]
["12.18","D-DT-1862","Install 5-Pole Double Platform Mounted Transformer (300-500kVA) Structure","ea",null,0,0]
["12.19","D-DT-1863","Install 2-Pole Platform Mounted Transformer (100-200kVA) In Line Structure","ea",null,0,0]
["12.20","D-DT-1864","Install 5-Pole Double Platform Mounted Transformer (300-500kVA) Out of Line Structure (Out of Line)","ea",null,0,0]
["12.21","D-DT-1865","Install 2-Pole Platform Mounted Transformer (200kVA) Out of Line Structure","ea",null,0,0]
["12.22","D-DT-1866","Install Single Pole Mounted Transformer Structure (Out of Line)","ea",null,0,0]
["12.23","D-DT-1866","Install Transformer (5-100kVA) Single Pole Mounted (8m Out-Of-Line) ","ea",null,0,0]
["12.24","D-DT-1866","Install Transformer (5-100kVA) Single Pole Mounted Supported jumper (8m Out-Of-Line)  ","ea",null,0,0]
["12.25","D-DT-1866","MV Transformer - 100kVA Single Pole Mounted Overhead Stringer (9m Out-Of-Line)  ","ea",null,0,0]
["12.26","D-DT-1867","Transformer - Back To Back 64kVA Or 128kVA Dual Phase Supply ","ea",null,0,0]
["12.27","D-DT-1868","Extended double platform Transformer Structure ( for 2x 500kVA )","ea",null,0,0]
["Total:Installing of transformers and Structures",{"$nulls":5},{"$f":"SUM(G323:G349)","v":0}]
[13,null,"Installation for overhead line "]
["13.1","D-DT-3053","Bird Flappers","ea",null,0,{"$f":"E352*F352","v":0}]
["13.2","D-DT-7028","Aircraft Warning Device","ea",null,0,{"$f":"E353*F353","v":0}]
["13.3",null,"Install Bird Raptor Protectors","ea",null,0,0]
["13.4",null,"Install Bonding","ea",null,0,0]
["13.5",null,"Install BIL Downwire","ea",null,0,0]
["13.6",null,"Wooden Pole testing (Old poles)","ea",null,0,0]
["13.7",null,"Site Rehabilitation ","ea",null,0,0]
["Total:Installation for overhead line ",{"$nulls":5},{"$f":"SUM(G352:G358)","v":0}]
[14,null,"Transformer LV Protection"]
["14.1","D-DT-3034","63A MCCB - 1-Phase(Circuit breaker)","ea",null,0,{"$f":"E361*F361","v":0}]
["14.2","D-DT-3034","80A MCCB - 1-Phase(Circuit breaker)","ea",null,0,{"$f":"E362*F362","v":0}]
["14.3","D-DT-3034","40A MCCB - 3-Phase(Circuit breaker)","ea",null,0,0]
["14.4","D-DT-3034","80A MCCB - 3-Phase(Circuit breaker)","ea",null,0,0]
["14.5","D-DT-3034","150A MCCB - 3-Phase(Circuit breaker)","ea",null,0,0]
["14.6","D-DT-3034","300A MCCB - 3-Phase(Circuit breaker)","ea",null,0,0]
["14.7","D-DT-3034","450A MCCB - 3-Phase(Circuit breaker)","ea",null,0,0]
["14.8","D-DT-3034","800A MCCB - 3-Phase(Circuit breaker)","ea",null,0,0]
["14.9","D-DT-0309","Three phase trf and LV fuse holder connection - ABC conductor- (40A, 63A, 80A, 125A and 160A) NH00 ","Set",null,0,0]
["14.10","D-DT-0309","Dual phase trf and LV fuse holder connection - ABC conductor- (40A, 63A, 80A, 125A and 160A) NH00","Set",null,0,0]
["14.11","D-DT-0309","Single phase trf and LV fuse holder connection - ABC conductor- (40A, 63A, 80A, 125A and 160A) NH00 ","Set",null,0,0]
["Total:Transformer LV Protection",{"$nulls":5},{"$f":"SUM(G361:G371)","v":0}]
[15,null,"Install CT-VT, Recloser, Voltage Regulator, Shunt Capacitor Banks."]
["15.1","D-DT-1839","Install MV CT / VT Metering Bulk Tariff Out-Of-Line Structure","ea",null,0,{"$f":"E374*F374","v":0}]
["15.2","D-DT-1840","Install MV CT / VT Metering Bulk Tariff In-Line Structure","ea",null,0,{"$f":"E375*F375","v":0}]
["15.3","D-DT-1841","Install CT/VT Metering Statistical  In-line Structure","ea",null,0,0]
["15.4","D-DT-1846","Install CT/VT Metering Statistical Out-Of-Line Structure","ea",null,0,0]
["15.5","D-DT-3118","Install CT/VT unit","ea",null,0,0]
["15.6",null,"Install CT/VT unit metering kiosk","ea",null,0,0]
["15.7","D-DT-0464","Install SWER- Single Phase Recloser on a Single Pole","ea",null,0,0]
["15.8","D-DT-1825","Install Recloser In-Line Structure","ea",null,0,0]
["15.9","D-DT-1829","Install Recloser - Out-Of-Line Structure","ea",null,0,0]
["15.10","D-DT-0272","Install Recloser including Control box ","ea",null,0,0]
["15.11","D-DT-1830","Install Voltage Regulator - 11/22kV 100/200A Open Delta Structure-Inline","ea",null,0,0]
["15.12","D-DT-1831","Install Voltage Regulator - 11/22kV 100/200A Closed Delta Structure-Inline","ea",null,0,0]
["15.13","D-DT-1833","Install Voltage Regulator - 11/22kV 100/200A Open Delta - Out-Of-Line Structure","ea",null,0,0]
["15.14","D-DT-1834","Install Voltage Regulator - 11/22kV 100/200A Closed Delta - Out-Of-Line Structure","ea",null,0,0]
["15.15","D-DT-3119","Install Voltage Regulator on the structure","ea",null,0,0]
["15.16","D-DT-1832","Install Capacitor Structure","ea",null,0,0]
["15.17","D-DT-3218","Install Capacitor Bank","ea",null,0,0]
["15.18","D-DT-0261","Install Surge Arresters","ea",null,0,0]
["15.19",null,"Install Labels  (Chromadek)","ea",null,0,0]
["15.20","D-DT-1842","Line Arresters 1.3m Long Steel Crossarm Staggered Vertical Configuration","ea",null,0,0]
["15.21","D-DT-1843","Line Arresters 2.5m Long Wooden Crossarm Vertical Configuration","ea",null,0,0]
["15.22","D-DT-1844","Line Arresters H-Pole Configuration","ea",null,0,0]
["15.23","D-DT-1845","Line Arresters Delta Configuration","ea",null,0,0]
["15.24",null,"Install Labels  (Chromadek)","ea",null,0,0]
["Total:Install CT-VT, Recloser, Voltage Regulator, Shunt Capacitor Banks.",{"$nulls":5},{"$f":"SUM(G374:G397)","v":0}]
[16,null,"Equipment/Section cut-outs or Disconnectors "]
["16.1","D-DT-0465","SWER - Cut out","ea",null,0,{"$f":"E400*F400","v":0}]
["16.2","D-DT-1847","Section Links Cut/Outs Or Disconnectors 3.5/4.5m Wood Crossarm / H-Pole","ea",null,0,{"$f":"E401*F401","v":0}]
["16.3","D-DT-1848","Section Links Cut/Outs Or Disconnectors 2.5m Wood Crossarm / Single Pole","ea",null,0,0]
["16.4","D-DT-1849","Equipment Links Cut-Outs Or Disconnectors 2.5m Wood Crossarm / Single Pole","ea",null,0,0]
["16.5","D-DT-1850","Section / Equipment Links Or Disconnectors 1.3m Steel Crossarm / Single Pole","ea",null,0,0]
["16.6","D-DT-1851","Equipment Links Cut/Out Or Disconnectors  - 2.5m Wood Crossarm / H-Pole","ea",null,0,0]
["16.7","D-DT-1852","Equipment Links Cut/Out Or Disconnectors  - 3.5/4.5m Wood Crossarm / H-Pole","ea",null,0,0]
["16.8","D-DT-1853","Equipment Isolating (In-Out) Links - Cut-Outs Or Disconnectors - 2 x 2.5m Wood Crossarm / H-Pole","ea",null,0,0]
["16.9","D-DT-1854","Equipment Isolating (In-Out) Links - Cut-Outs Or Disconnectors - 4.5m Wood Crossarm / Out-Of-Line","ea",null,0,0]
["16.10","D-DT-1857","3 Phase Switch Disconnector Ganged, Link Stick Operated Horizontal Assembly H-Pole 1800 And 2200 Centres","ea",null,0,0]
["16.11","D-DT-1858","3 Phase Switch Disconnector Ganged, Link Stick Operated Assembly Single Pole Mounted ","ea",null,0,0]
["16.12","D-DT-1869","Section / Equipment Links Cut/Out Or Disconnectors 1.7m Steel Crossarm/Single Pole","ea",null,0,0]
["16.13","D-DT-1874","Equipment Links Or Disconnectors 2.4m Steel Crossarm / H-Pole","ea",null,0,0]
["16.14","D-DT-1875","Equipment Isolating (In-Out) Links Cut/Outs Or Disconnectors 2x2.4m Steel Crossarm / H-Pole","ea",null,0,0]
["Total:Equipment/Section cut-outs or Disconnectors ",{"$nulls":5},{"$f":"SUM(G400:G413)","v":0}]
[null,null,"UNDERGROUND EQUIPMENT INSTALLATION"]
[null,null,"Install Mini-substations, Ring Main Units, CT-VT Units, Metering Units as per relevant Eskom DDT drawings."]
[17,null,"Miniature Substation"]
["17.1",null,"Prepare Site Including Excavation and Compaction for Pre-Cast Plinth","m2",null,0,{"$f":"E418*F418","v":0}]
["17.2","D-DT-0859","Install Pre-Cast Plinth","ea",null,0,{"$f":"E419*F419","v":0}]
["17.3","D-DT-8050","Install Miniature Substation","ea",null,0,0]
["17.4","D-DT-3034","MCCB - 3-Phase","ea",null,0,0]
["17.5",null,"Stencilling ","p/letter",null,0,0]
["17.6",null,"Install Labels  (Chromadek and Aluminium)","ea",null,0,0]
["Total:Miniature Substation",{"$nulls":5},{"$f":"SUM(G418:G423)","v":0}]
[18,null,"Ring Main Unit (RMU)"]
["18.1",null,"Prepare Site Including Excavation and Compaction for Pre-Cast Plinth","m2",null,0,{"$f":"E426*F426","v":0}]
["18.2","D-DT-0863","Install Pre-Cast Plinth","ea",null,0,{"$f":"E427*F427","v":0}]
["18.3","D-DT-8060","Install Ring Main Unit","ea",null,0,0]
["18.4",null,"Stencilling ","p/letter",null,0,0]
["18.5",null,"Install Labels  (Chromadek)","ea",null,0,0]
["Total:Ring main Unit (RMU)",{"$nulls":5},{"$f":"SUM(G426:G430)","v":0}]
[19,null,"Ground Mounted CT-VT Unit"]
["19.1",null,"Prepare Site Including Excavation and Compaction for Pre-Cast Plinth","m2",null,0,{"$f":"E433*F433","v":0}]
["19.2","D-DT-0861","Install Pre-Cast Plinth","ea",null,0,{"$f":"E434*F434","v":0}]
["19.3","D-DT-3118","Install CT-VT Unit","ea",null,0,0]
["19.4",null,"Stencilling ","p/letter",null,0,0]
["19.5",null,"Install Labels  (Chromadek)","ea",null,0,0]
["Total:Ground Mounted CT-VT Unit",{"$nulls":5},{"$f":"SUM(G433:G437)","v":0}]
[20,null,"Ground Mounted Meter Kiosk"]
["20.1",null,"Prepare Site Including Excavation and Compaction for Pre-Cast Plinth","m2",null,0,{"$f":"E440*F440","v":0}]
["20.2","D-DT-1010","Install Pre-Cast Plinth","ea",null,0,{"$f":"E441*F441","v":0}]
["20.3","D-DT-0338","Install LPU Meter Kiosk","ea",null,0,0]
["20.4","D-DT-3236","Kiosk meter: 1ph; 16 kVA;prepay; ground mount (for 2, 4 or 6 way)","ea",null,0,0]
["20.5","D-DT-3236","Kiosk meter: 1ph; 16 kVA;prepay; ground mount (for 8 or 12 way)","ea",null,0,0]
["20.6","D-DT-3236","Kiosk meter: 3ph; 25 kVA (for 2 or 4 way)","ea",null,0,0]
["20.7","D-DT-3236","Kiosk meter: 3ph; 50 kVA; (for 2 or 4 way)","ea",null,0,0]
["20.8",null,"Energy Management Units (Meter)","ea",null,0,0]
["20.9",null,"Stencilling ","p/letter",null,0,0]
["20.10",null,"Install Labels  (Chromadek)","ea",null,0,0]
["Total:Ground Mounted Meter Kiosk",{"$nulls":5},{"$f":"SUM(G440:G449)","v":0}]
[21,null,"Earthing Installation: Overhead and Underground "]
[null,null,"MV & LV Earthing Trenching shall include Excavation, Backfilling, Compaction and Installation of electrode and conductor as per the Eskom Standard for Earthing"]
["21.1",null,"Equipment  MV and LV Earthing"]
["21.1.1",null,"Excavation - length long, 0.5m deep and 0.4m wide","m3",null,0,{"$f":"E454*F454","v":0}]
["21.1.2","D-DT-3139","16mm sq. Bare Stranded Cu Conductor","m",null,0,{"$f":"E455*F455","v":0}]
["21.1.3","D-DT-3137","16mm sq. Insulated Stranded Cu Conductor","m",null,0,0]
["21.1.4","D-DT-3091","Earth Electrode (Type as per the design)","ea",null,0,0]
["21.1.5",null,"Backfill - length long, 0.5m deep and 0.4m wide","m3",null,0,0]
["Total:Earthing Installation: Overhead and Underground (Equipment MV and LV Earthing)",{"$nulls":5},{"$f":"SUM(G454:G458)","v":0}]
[22,null,"Underground Cable Installation"]
["22.1",null,"Trenching"]
["22.1.1","D-DT-0854","Excavation - General Trench -  1.0m Deep and 0.45m Wide","m3",null,0,{"$f":"E462*F462","v":0}]
["22.1.2","D-DT-0854","Excavation - Rail/Road Crossing Trench -  1.6m Deep and 0.45m Wide","m3",null,0,{"$f":"E463*F463","v":0}]
["22.1.3","D-DT-0854","Excavation - Along The Road Trench - 1.3m Deep and 0.45m Wide","m3",null,0,0]
["22.1.4","D-DT-0854","Excavation Rocky soil - General Trench -  1.0m Deep and 0.45m Wide","m3",null,0,0]
["22.1.5","D-DT-0854","Excavation Rocky soil - Rail/Road Crossing Trench -  1.6m Deep and 0.45m Wide","m3",null,0,0]
["22.1.6","D-DT-0854","Excavation Rocky soil- Along The Road Trench - 1.3m Deep and 0.45m Wide","m3",null,0,0]
["22.1.7",null,"Install Barricading ","m",null,0,0]
["22.1.8",null,"Install Shoring","m",null,0,0]
["22.1.9",null,"Dispose of unused Excavated Material at approved disposal site","m3",null,0,0]
[{"$nulls":6},{"$f":"SUM(G462:G470)","v":0}]
["22.2",null,"Road & Rail Crossing"]
["22.2.1",null,"Directional Drilling (Boring under road surface)","m",null,0,{"$f":"E473*F473","v":0}]
["22.2.2",null,"Excavate Start and End Pits","m3",null,0,{"$f":"E474*F474","v":0}]
["22.2.3",null,"Supply and Install appropriate sleeve","ea",null,0,0]
[{"$nulls":6},{"$f":"SUM(G473:G475)","v":0}]
["22.3",null,"Compacting Bedding Soil"]
["22.3.1","D-DT-0854","Sifted Soil - 0.15m High and 0.45m Wide","m3",null,0,{"$f":"E478*F478","v":0}]
["22.3.2","D-DT-0854","Imported Soil - 0.15m High and 0.45m Wide","m3",null,0,{"$f":"E479*F479","v":0}]
[{"$nulls":6},{"$f":"SUM(G478:G479)","v":0}]
["22.4",null,"Laying of Cable"]
["22.4.1","D-DT-0854","Laying of 3-Core 50mm sq. MV Cable","m",null,0,{"$f":"E482*F482","v":0}]
["22.4.2","D-DT-0854","Laying of 3-Core 95mm sq. MV Cable","m",null,0,{"$f":"E483*F483","v":0}]
["22.4.3","D-DT-0854","Laying of 3-Core 185mm sq. MV Cable","m",null,0,0]
["22.4.4","D-DT-0854","Laying of 3-Core 300mm sq. MV Cable","m",null,0,0]
["22.4.5","D-DT-0854","Laying of 4-Core 16mm sq. LV Cable","m",null,0,0]
["22.4.6","D-DT-0854","Laying of 4-Core 25mm sq. LV Cable","m",null,0,0]
["22.4.7","D-DT-0854","Laying of 4-Core 35mm sq. LV Cable","m",null,0,0]
["22.4.8","D-DT-0854","Laying of 4-Core 50mm sq. LV Cable","m",null,0,0]
["22.4.9","D-DT-0854","Laying of 4-Core 70mm sq. LV Cable","m",null,0,0]
["22.4.10","D-DT-0854","Laying of 4-Core 120mm sq. LV Cable","m",null,0,0]
["22.4.11","D-DT-0854","Laying of 4-Core 185mm sq. LV Cable","m",null,0,0]
["22.4.12","D-DT-0854","Laying of 4-Core 240mm sq. LV Cable","m",null,0,0]
[{"$nulls":6},{"$f":"SUM(G482:G493)","v":0}]
["22.5",null,"Compacting Blanket Soil"]
["22.5.1","D-DT-0854","Sifted Soil -  0.25m High and 0.45m Wide","m3",null,0,{"$f":"E496*F496","v":0}]
["22.5.2","D-DT-0854","Imported Soil - 0.25m High and 0.45m Wide","m3",null,0,{"$f":"E497*F497","v":0}]
[{"$nulls":6},{"$f":"SUM(G496:G497)","v":0}]
["22.6",null,"Backfilling of the Cable Trench"]
["22.6.1","D-DT-0854","General Trench - 0.6m High and 0.45m Wide","m3",null,0,{"$f":"E500*F500","v":0}]
["22.6.2","D-DT-0854","Rail/Road Crossing Trench - 1.2m High and 0.45m Wide","m3",null,0,{"$f":"E501*F501","v":0}]
["22.6.3","D-DT-0854","Along The Road Trench - 0.9m High and 0.45m Wide","m3",null,0,0]
["22.6.4","D-DT-0854","Laying of Warning Tape","m",null,0,0]
["22.6.5","D-DT-8012","Installation of Cable Route Markers","ea",null,0,0]
["22.6.6",null,"Re-instatement of Gardens","m2",null,0,0]
["22.6.7",null,"Re-instatement of Pavements","m2",null,0,0]
["22.6.8",null,"Re-instatement of Driveways ","m2",null,0,0]
["22.6.9",null,"Re-instatement of Tarred surfaces","m2",null,0,0]
[{"$nulls":6},{"$f":"SUM(G500:G508)","v":0}]
["Total:'Underground Cable Installation",{"$nulls":5},{"$f":"G509+G498+G494+G480+G476+G471","v":0}]
[{"v":23,"d":"23.0"},null,"MV/LV Cable Termination"]
[null,null,"Termination of cable shall be done in accordance with Eskom standard of terminating cables for the termination onto air-filled cable, termination onto overhead line cable in their different classifications. Termination material are free issue, unless otherwise ordered and/or specified by the Project Manger to supply all accessories on an as and when required basis as cost plus fee."]
["23.1",null,"LV Cable Termination onto Air-Filled Cable Termination Enclosure"]
["23.1.1",null,"Install 2-Core 16mm sq. LV Bare Termination","ea",null,0,{"$f":"E514*F514","v":0}]
["23.1.2",null,"Install 4-Core 16mm sq. LV Bare Termination","ea",null,0,{"$f":"E515*F515","v":0}]
["23.1.3",null,"Install 4-Core 25mm sq. LV Bare Termination","ea",null,0,0]
["23.1.4",null,"Install 4-Core 35mm sq. LV Bare Termination","ea",null,0,0]
["23.1.5",null,"Install 4-Core 50mm sq. LV Bare Termination","ea",null,0,0]
["23.1.6",null,"Install 4-Core 70mm sq. LV Bare Termination","ea",null,0,0]
["23.1.7",null,"Install 4-Core 120mm sq. LV Bare Termination","ea",null,0,0]
["23.1.8",null,"Install 4-Core 185mm sq. LV Bare Termination","ea",null,0,0]
["23.1.9",null,"Install 4-Core 240mm sq. LV Bare Termination","ea",null,0,0]
["23.1.10",null,"Install 3-Core 50mm sq. Shrouded Termination","ea",null,0,0]
[{"$nulls":6},{"$f":"SUM(G514:G523)","v":0}]
["23.2",null,"MV Cable Termination onto Air-Filled Cable Termination Enclosure"]
["23.2.1","D-DT-8011","Install 3-Core 50mm sq. Shrouded Termination","ea",null,0,{"$f":"E526*F526","v":0}]
["23.2.2","D-DT-8006","Install 3-Core 50mm sq. Unscreened Separable Connector Termination","ea",null,0,{"$f":"E527*F527","v":0}]
["23.2.3","D-DT-8006","Install 3-Core 50mm sq. Unscreened Separable Connector Extended Screen Termination","ea",null,0,0]
["23.2.4","D-DT-8006","Install 3-Core 50mm sq. Screened Separable Connector Termination","ea",null,0,0]
["23.2.5","D-DT-8011","Install 3-Core 95mm sq. Shrouded Termination","ea",null,0,0]
["23.2.6","D-DT-8006","Install 3-Core 95mm sq. Unscreened Separable Connector Termination","ea",null,0,0]
["23.2.7","D-DT-8006","Install 3-Core 95mm sq. Unscreened Separable Connector Extended Screen Termination","ea",null,0,0]
["23.2.8","D-DT-8006","Install 3-Core 95mm sq. Screened Separable Connector Termination","ea",null,0,0]
["23.2.9","D-DT-8011","Install 3-Core 185mm sq. Shrouded Termination","ea",null,0,0]
["23.2.10","D-DT-8006","Install 3-Core 185mm sq. Unscreened Separable Connector Termination","ea",null,0,0]
["23.2.11","D-DT-8006","Install 3-Core 185mm sq. Unscreened Separable Connector Extended Screen Termination","ea",null,0,0]
["23.2.12","D-DT-8006","Install 3-Core 185mm sq. Screened Separable Connector Termination","ea",null,0,0]
["23.2.13","D-DT-8011","Install 3-Core 300mm sq. Shrouded Termination","ea",null,0,0]
["23.2.14","D-DT-8006","Install 3-Core 300mm sq. Unscreened Separable Connector Termination","ea",null,0,0]
["23.2.15","D-DT-8006","Install 3-Core 300mm sq. Unscreened Separable Connector Extended Screen Termination","ea",null,0,0]
["23.2.16","D-DT-8006","Install 3-Core 300mm sq. Screened Separable Connector Termination","ea",null,0,0]
["23.2.17","D-DT-8017","INSTALL CONNECTOR:SEP EXT SCR 11KV 70-185 S/ARR)","ea",null,0,0]
["23.2.18","D-DT-8004","INSTALL TRIFUR KIT,SCR MV 2.5m XLPE 95-300 ","ea",null,0,0]
[{"$nulls":6},{"$f":"SUM(G526:G543)","v":0}]
["23.3",null,"MV Cable Termination onto Overhead Line "]
["23.3.1","D-DT-0850","Install 50mm sq O/D Termination from Substation","ea",null,0,{"$f":"E546*F546","v":0}]
["23.3.2","D-DT-0851","Install 50mm sq O/D Termination","ea",null,0,{"$f":"E547*F547","v":0}]
["23.3.3","D-DT-0850","Install 95mm sq O/D Termination from Substation","ea",null,0,0]
["23.3.4","D-DT-0851","Install 95mm sq O/D Termination","ea",null,0,0]
["23.3.5","D-DT-0850","Install 185mm sq O/D Termination from Substation","ea",null,0,0]
["23.3.6","D-DT-0851","Install 185mm sq O/D Termination","ea",null,0,0]
["23.3.7","D-DT-0850","Install 300mm sq O/D Termination from Substation","ea",null,0,0]
["23.3.8","D-DT-0851","Install 300mm sq O/D Termination","ea",null,0,0]
["23.3.9","D-DT-1850","Install Equipment Links - 3-Phase ","ea",null,0,0]
["23.3.10","D-DT-0261","Install Surge Arresters - 3-Phase","ea",null,0,0]
["23.3.11","D-DT-8023","Install a Steel Pipe","ea",null,0,0]
[{"$nulls":6},{"$f":"SUM(G546:G556)","v":0}]
["Total:MV/LV Cable Termination",{"$nulls":5},{"$f":"G557+G544+G524","v":0}]
[24,null,"MV/LV Cable Joints"]
[null,null,"Cable joint shall be executed in accordance with Eskom standard of jointing cables in their different classifications. Joint kits materials are free issue, unless otherwise ordered and/or specified by the Project Manger to supply all accessories on an as and when required basis and paid as cost plus fee. "]
["24.1","D-DT-8008","Make-Off a Cable Joint - 3-Core 16mm sq MV Cable","ea",null,0,{"$f":"E561*F561","v":0}]
["24.2","D-DT-8008","Make-Off a Cable Joint - 3-Core 50mm sq MV Cable","ea",null,0,{"$f":"E562*F562","v":0}]
["24.3","D-DT-8008","Make-Off a Cable Joint - 3-Core 95mm sq MV Cable","ea",null,0,0]
["24.4","D-DT-8008","Make-Off a Cable Joint - 3-Core 185mm sq MV Cable","ea",null,0,0]
["24.5","D-DT-8008","Make-Off a Cable Joint - 3-Core 300mm sq MV Cable","ea",null,0,0]
["24.6","D-DT-8021","Make-Off a TRANS Cable Joint - 3-Core 16-35 sq MV Cable ","ea",null,0,0]
["24.7","D-DT-8021","Make-Off a TRANS Cable Joint - 3-Core 50-95 sq MV Cable ","ea",null,0,0]
["24.8","D-DT-8021","Make-Off a TRANS Cable Joint - 3-Core 120-185 sq MV Cable ","ea",null,0,0]
["24.9","D-DT-8021","Make-Off a TRANS Cable Joint - 3-Core 240-400 sq MV Cable ","ea",null,0,0]
["24.10","D-DT-8014","Make-Off a Cable Joint - 4-Core 16mm sq LV Cable","ea",null,0,0]
["24.11","D-DT-8014","Make-Off a Cable Joint - 4-Core 25mm sq LV Cable","ea",null,0,0]
["24.12","D-DT-8014","Make-Off a Cable Joint - 4-Core 35mm sq LV Cable","ea",null,0,0]
["24.13","D-DT-8014","Make-Off a Cable Joint - 4-Core 50mm sq LV Cable","ea",null,0,0]
["24.14","D-DT-8014","Make-Off a Cable Joint - 4-Core 70mm sq LV Cable","ea",null,0,0]
["24.15","D-DT-8014","Make-Off a Cable Joint - 4-Core 120mm sq LV Cable","ea",null,0,0]
["24.16","D-DT-8014","Make-Off a Cable Joint - 4-Core 185mm sq LV Cable","ea",null,0,0]
["24.17","D-DT-8014","Make-Off a Cable Joint - 4-Core 240mm sq LV Cable","ea",null,0,0]
["Total:MV/LV Cable Joints",{"$nulls":5},{"$f":"SUM(G561:G577)","v":0}]
[25,null,"Pole Numbering"]
["25.1",null,"MV/LV Pole number (Tag, punch, install)","ea",null,0,{"$f":"E580*F580","v":0}]
["25.2",null,"MV/LV Pole number (paint)","ea",null,0,{"$f":"E581*F581","v":0}]
["Total:Pole Numbering",{"$nulls":5},{"$f":"SUM(G580:G581)","v":0}]
[26,null,"Service Connection Installation"]
["26.1",null,"Overhead Service Connection"]
["26.1.1","D-DT-0361","LV service connection with service pole (5m or 7m pole)","ea",null,0,{"$f":"E585*F585","v":0}]
["26.1.2","D-DT-0360","LV service connection to house","ea",null,0,{"$f":"E586*F586","v":0}]
["26.1.3","D-DT3145","Single Phase PLC Smart Split Meter with CIU","ea",null,0,0]
["26.1.4","D-DT3145","Three Phase Smart PLC Split Meter with CIU","ea",null,0,0]
["26.1.5","D-DT3145/9421","Gateway/Data Concentrators (DCU)","ea",null,0,0]
["26.1.6","D-DT-1878","M.V. DISTRIBUTION Data Concentrator  LV ABC IPC Connection Option for  PM Transformer Installation","ea",null,0,0]
["26.1.7","D-DT-0338","SPU Meter Kiosk  < 100kVA including service cable from Transformer to Kiosk.","ea",null,0,0]
["26.1.8","D-DT-0338  ","LPU Meter Kiosk 100kVA ≥ 200kVA  including service cable from Transformer to Kiosk.","ea",null,0,0]
["26.1.9","D-DT-0338","LPU Meter Kiosk 315kVA ≥ 500kVA  including service cable from Transformer to Kiosk.","ea",null,0,0]
["26.1.10",null,"Install load limiter","ea",null,0,0]
["26.1.11","D-DT0366","Service Concentric Suspension Assembly","ea",null,0,0]
["26.1.12","D-DT0384","Service Concentric Strain Assembly","ea",null,0,0]
["Total:Service connection Installation",{"$nulls":5},{"$f":"SUM(G585:G596)","v":0}]
["26.2",null,"Underground Service Connection"]
["26.2.1",null,"25mm Conduit LDPE Pipe","m",null,0,{"$f":"E599*F599","v":0}]
["26.2.2","D-DT-0854","Excavation - 0.75m Deep and 0.45 Wide","m3",null,0,{"$f":"E600*F600","v":0}]
["26.2.3",null,"Road Crossing - Digging","m",null,0,0]
["26.2.4",null,"Road Crossing - Bulleting","Each",null,0,0]
["26.2.5","D-DT-8018","Install Sleeves","m",null,0,0]
["26.2.6","D-DT-0854","Laying of Warning Tape","m",null,0,0]
["26.2.7","D-DT-0854","Backfill - 0.75m Deep and 0.45 Wide","m3",null,0,0]
["Total:Underground Service Connection",{"$nulls":5},{"$f":"SUM(G599:G605)","v":0}]
[27,null,"Equipment Fencing"]
["27.1","D-DT 5237 ","2.4m High Steel Palisade Fence ","m",null,0,{"$f":"E608*F608","v":0}]
["27.2","D-DT 5237 ","2.4m High Double Leaf Gate (5m Wide)","ea",null,0,{"$f":"E609*F609","v":0}]
["27.3","D-DT 52397","2.4m High Double Leaf Gate (4m Wide)","ea",null,0,0]
["27.4","D-DT 5237 ","2.4m High x 1m Wide Gate","ea",null,0,0]
["27.5","D-DT 5237 ","2.4m High x 2,5m Wide Gate","ea",null,0,0]
["27.6","D-DT 2504","GATE,SERVITUDE 4m GALV. ST (FARM GATE)","ea",null,0,0]
["27.7","D-DT 2504","GATE,SERVITUDE 6m D/LEAF GALV ST (FARM GATE)","ea",null,0,0]
["Total:Equipment Fencing",{"$nulls":5},{"$f":"SUM(G608:G614)","v":0}]
[28,null,"Equipment Dismantling"]
[null,null,"Includes Cut Up, Coiling  And Loading But Excludes Transport To The Nearest Eskom Stores"]
["28.1",null,"Dismantle LV Conductor ","m",null,0,{"$f":"E618*F618","v":0}]
["28.2",null,"Dismantle MV Conductor","m",null,0,{"$f":"E619*F619","v":0}]
["28.3",null,"Dismantle Service Cable","m",null,0,0]
["28.4",null,"Dismantle MV Overhead 16kVA Transformer","Each",null,0,0]
["28.5",null,"Dismantle MV Overhead 25kVA Transformer","Each",null,0,0]
["28.6",null,"Dismantle MV Overhead 50kVATransformer","Each",null,0,0]
["28.7",null,"Dismantle MV Overhead 100kVATransformer","Each",null,0,0]
["28.8",null,"Dismantle MV Overhead 200kVATransformer","Each",null,0,0]
["28.9",null,"Dismantle MV Overhead 315/500kVATransformer","Each",null,0,0]
["28.10",null,"Dismantle MV Overhead Transformers","Each",null,0,0]
["28.11",null,"Dismantle MV Overhead Sectionaliser","Each",null,0,0]
["28.12",null,"Dismantle MV Overhead Reclosers","Each",null,0,0]
["28.13",null,"Dismantle MV Pole Mounted CT-VT Unit","Each",null,0,0]
["28.14",null,"Dismantle MV Pole Mounted Shunt Capacitor Banks","Each",null,0,0]
["28.15",null,"Dismantle MV Line Arrestor","Each",null,0,0]
["28.16",null,"Dismantle MV Overhead Section / Equipment Links","Each",null,0,0]
["28.17",null,"Remove LV Pole Top Boxes","Each",null,0,0]
["28.18",null,"Dismantle Stays","Each",null,0,0]
["28.19",null,"Dismantle Poles","Each",null,0,0]
["28.20",null,"Remove MV Cable, includes excavation and backfill","m",null,0,0]
["28.21",null,"Remove LV Cable, includes excavation and backfill","m",null,0,0]
["28.22",null,"Remove MV Cable I/D Terminations","Each",null,0,0]
["28.23",null,"Remove MV Cable O/D Terminations","Each",null,0,0]
["28.24",null,"Remove RMU ","Each",null,0,0]
["28.25",null,"Remove Minisub","Each",null,0,0]
["28.26",null,"Remove Ground Mounted CT-VT Unit","Each",null,0,0]
["28.27",null,"Remove LV Kiosks","Each",null,0,0]
["28.28",null,"Remove Plinths ","Each",null,0,0]
["28.30",null,"Removal of a post / pin insulator","Each",null,0,0]
[28.31,null,"Removal of SPU unit with rails","Each",null,0,0]
[28.32,null,"Removal of LPU unit ( indoor and outdoor)","No",null,0,0]
[28.33,null,"Moving of pre-Paid Meter (Meter Shifting)","Each",null,0,0]
[28.34,null,"Removal of ED / ECU (Pre-Paid Meter)","Each",null,0,0]
[28.35,null,"AP4 Meter Box + Pipe","Each",null,0,0]
[28.35,null,"Remove conventional meter","Each",null,0,0]
["Total:Equipment Dismantling",{"$nulls":5},{"$f":"SUM(G618:G652)","v":0}]
[29,null,"BIL & BONDING"]
["29.1",null,"Re-instate broken/damage bonding & BIL, Spark Gap Device on existing structure ","No",null,0,{"$f":"E655*F655","v":0}]
["Total:Bil & Bonding",{"$nulls":5},{"$f":"SUM(G655)","v":0}]
[30,null,"Equipment Testing"]
[null,null,"Allowance shall be made for the complete testing and commissioning of Medium Voltage equipment.  Tests to include earth electrode resistance measurement.  "]
["30.1",null,"Perform Phasing Test","Each",null,0,{"$f":"E659*F659","v":0}]
["30.2",null,"Continuity Tests","Each",null,0,{"$f":"E660*F660","v":0}]
["30.3",null,"Earth Resistance Test","Each",null,0,0]
["30.4",null,"VLF Test for MV Cable","Each",null,0,0]
["30.5",null,"MV Cable Tracing and Spiking","Each",null,0,0]
["30.5",null,"Compaction Test","Each",null,0,0]
["30.6",null,"C.O.C Test for Certificate","No",null,0,0]
["30.7",null,"Voltage Regulator commissioning test","No",null,0,0]
["30.8",null,"Recloser commissioning test","No",null,0,0]
["30.9",null,"CT VT commissioning test","No",null,0,0]
["Total:Equipment Testing",{"$nulls":5},{"$f":"SUM(G659:G668)","v":0}]

{"sheet":"Section 31 (Material) ","index":2,"n_rows":652,"n_cols":7,"rows_kept":652,"merged":[[0,0,0,1],[0,2,0,6],[1,0,1,6],[2,0,2,6]]}
[null,null,"NCOU:MEDIUM VOLTAGE AND LOW VOLTAGE MATERIAL FOR LINES AND CABLES."]
["The following Material can be supplied by the Contractor if not available at ESKOM. Prior authorisation of purchase of material to be given by the responsible Project Manager."]
["***NOTE: supply items without  a standard rate shall be cost +10% handling fee, supplier quotes to be submitted as supporting documents"]
["D-DT NO","SAP NUMBER","DESCRIPTION","UNIT","QTY"," RATE","TOTAL"]
[3035,"0164312","ANCHOR ASSY,ST SOIL 380x220x70     D3035","EA",null,null,{"$f":"F5*E5","v":0}]
[3035,"0164313","ANCHOR ASSY,ST SOIL 380x220x70     D3035","EA",null,null,{"$f":"F6*E6","v":0}]
["3054","0163401","ANCHOR,ROCK MV/LV 2 EYED S/ROD     D3054","EA",null,null,0]
["3149","0400906","ANCHOR,NYLON  6x55LG EASYDRIVE     D3149","EA",null,null,0]
[3064,"0402493","ARMOR ROD,HELICALLY FORMED HAR/OAK D3064","EA",null,null,0]
[3064,"0402519","ARMOR ROD,HELICALLY FORMED FOX/35  D3064","EA",null,null,0]
[3064,"0402525","ARMOR ROD,HELICALLY FORMED MNK/PIN D3064","EA",null,null,0]
[7033,"0168754","ARMOUR-GRIP SUSP UNIT CHICAD 18.87 D7033","EA",null,null,0]
[3005,"0163768","BOLT,EYE GALV M20X250mm            D3005","EA",null,null,0]
[3003,"0163767","BOLT PIGTAIL ASSY M16X380mm        D3003","EA",null,null,0]
["3003","0163791","BOLT,PIGTAIL ASSY M10X280mm        D3003","EA",null,null,0]
[3150,"0164307","BRACKET,STRUT SWIVEL WOOD POLE     D3150","EA",null,null,0]
["3207","0175536","BRACKET,ST CABLE TERM SUPP GALV    D3207","EA",null,null,0]
["3022","0168265","BRACKET,TYPE F METER BOX 2400LG    D3022","EA",null,null,0]
["3150","0168525","BRACKET,STRUT 10x60x720            D3150","EA",null,null,0]
[3046,"0168552","BRACKET,POLE TOP 402x60x110   ARM  D3046","EA",null,null,0]
[7044,"0180060","BALL CLEVIS,V BOLT TYPE 120kN      D7044","EA",null,null,0]
["3023","0184235","BRACKET,EQUIP.PLATFORM 900mm ANGLE D3023","EA",null,null,0]
["3023","0175466","BRACKET,EQUIP.PLATFORM 620mm ANGLE D3023","EA",null,null,0]
[3104,"0210592","BRACKET,STRAIN ST OP.2 UTS 120kN   D7039","EA",null,null,0]
[3110,"0400900","BUCKLE,STRAP 12 C254               D3110","EA",null,null,0]
[3090,"0163803","COACH SCREW,GALV  75x12 HEX HD     D3090","KG",null,null,0]
[3033,"0164312","CLIP,BONDING 22D HOLE GALV         D3033","EA",null,null,0]
["3039","0165494","CLAMP,IPC BIMET 35-95I/6-25I D3039","EA",null,null,0]
[3039,"0165496","CLAMP,IPC BIMET 35-95I/35-95I D3039","EA",null,null,0]
["3039","0165498","CLAMP,IPC BIMET 35-95B/6-25I D3039","EA",null,null,0]
["3039","0165521","CLAMP,IPC BIMET 35-95B/35-95I D3039","EA",null,null,0]
["3058","0198209","CLAMP,P/G 2B AL-CU 6 -15M   5-12T  D3058","EA",null,null,0]
["3067","0168744","CLAMP,STRAIN O/H CONC  4/10mmSQ    D3067","EA",null,null,0]
[3075,"0168521","CABLE TIE,STRAP 270LGx8W UV STABLE D3075","EA",null,null,0]
["8013",171426,"CABLE COVER,PVC ORG/BLK 450WX300m  D8013","EA",null,null,0]
["8019","0175928","CLAMP,CABLE 50- 75 DIA POLYPROP BLKD8019","EA",null,null,0]
["8019","0175929","CLAMP,CABLE 75-100 DIA POLYPROP BLKD8019","EA",null,null,0]
["3070","0168367","CABLE GLAND ADJUST   No.1          D3070","EA",null,null,0]
["3070","0168279","CABLE GLAND ADJUST  No.2           D3070","EA",null,null,0]
["3070",168280,"CABLE GLAND ADJUST  No.3           D3070","EA",null,null,0]
["3070","0403461","CABLE GLAND ADJUST No.4            D3070","EA",null,null,{"$f":"F41*E41","v":0}]
["3070","0168368","CABLE GLAND ADJUST No.6            D3070","EA",null,null,{"$f":"F42*E42","v":0}]
[3061,"0168578","CLAMP,SUSP ABC 35-50SQ BARE NEUT   D3061","EA",null,null,0]
[6059,"0167508","CLEVIS-BALL 16mm 16L 80CL 120kN    D6059","EA",null,null,0]
[3008,"0168534","CLAMP,SUSP CRADLE CON 8,0-18,0     D3008","EA",null,null,0]
[7000,"0168745","CLAMP,C D/END ASSY CHI 18.87 ACSR D7000","EA",null,null,0]
[7022,"0185252","CLAMP,REV PIST  2B 6.0 TO 10.0","EA",null,null,0]
[7022,"0401310","CLAMP,REV PIST 3B 6.0 TO 15.0     D7022","EA",null,null,0]
[3008,"0402501","CLAMP,SUSP CRADLE CON 15.0-24.4    D3008","EA",null,null,0]
[3007,"0402551","CLAMP,THIMBLE CLEV A-ALLOY 40kN    D3007","EA",null,null,0]
["3093","0165559","CLAMP,EARTH ROD 16 RODPH/BRNZ      D3093","EA",null,null,0]
["3139","0171336","COND,CU BARE STR  7/1.72 AN 16SQ   D3139","M",null,null,0]
[3065,"0402511","DEAD END,HELICALLY FORMED HARE/OAK D3065","EA",null,null,0]
[3065,"0402521","DEAD END,HELICALLY FORMED FOX/35   D3065","EA",null,null,0]
[3065,"0402527","DEAD END,HELICALLY FORMED MNK/PINE D3065","EA",null,null,0]
[3079,"0168474","END CAP 35-70mm SQ ABC             D3079","EA",null,null,0]
["3091","0168669","EARTH ROD Cu 1500x16D THREADLESS   D3091","EA",null,null,0]
["8020","0180204","FERRULE,CRIMP CU  16SQ             D8020","EA",null,null,0]
["8020","0180261","FERRULE,CRIMP CU  25SQ             D8020","EA",null,null,0]
["8020","0180205","FERRULE,CRIMP CU  35,0SQ           D8020","EA",null,null,0]
["8020","0180207","FERRULE,CRIMP CU  70,0SQ           D8020","EA",null,null,0]
["8020","0180209","FERRULE,CRIMP CU 120,0SQ           D8020","EA",null,null,0]
["8020","0180210","FERRULE,CRIMP CU 150,0SQ           D8020","EA",null,null,0]
["8020","0180212","FERRULE,CRIMP CU 185,0SQ           D8020","EA",null,null,0]
["3222","0183883","FLOOR SCREED SAND/CEMENT 40kg      D3222","EA",null,null,0]
[3060,"0198223","GRIP,STRAIN O/H 35SQ B/NTRL ABC    D3060","EA",null,null,0]
[3060,"0198224","GRIP,STRAIN O/H 70SQ B/NTRL ABC    D3060","EA",null,null,0]
[3069,"0168541","GUYGRIP,D/END ST COND 3/3.35       D3069","EA",null,null,0]
[7047,"0185949","GUY GRIP,DBL  WRAP MAKE OFF 7/4.00 D7047","EA",null,null,0]
[3069,"0402509","GUYGRIP,D/END ST COND 7/4.0        D3069","EA",null,null,{"$f":"F70*E70","v":0}]
[7035,"0402537","GUYGRIP,D/END COND 13.21 19/2.65   D7035","EA",null,null,0]
[3019,"0168675","H CRIMP, COMPRESSION CONNECTOR D3019","EA",null,null,0]
[3144,"0167312","INSUL,STRAIN-STAY MV PORCELAIN     D3144","EA",null,null,0]
[3042,"0167492","INSUL,L/ROD 22kV 40kN 450C/L 20C   D3042","EA",null,null,0]
[3189,"0167585","INSUL,LINE POST 33kV 10kN HVH      D3189","M",null,null,0]
[3190,"0167588","INSUL,L/ROD 33kV 40kN  570C/L 20C  D3190","EA",null,null,0]
[3189,"0216396","INSUL,CAPPED POST 33kV 4kN 31      D3189","EA",null,null,0]
[3189,"0216397","INSUL,CAPPED POST 33kV 10kN HVH D3189","EA",null,null,0]
[3017,"0216687","INSUL,CAPPED POST 22kV 4kN HVH     D3017","EA",null,null,0]
[3017,"0216688","INSUL,CAPPED POST 22kV 10kN HVH D3017","EA",null,null,0]
["3017","0175532","INSUL,STAT POST 22kV 1.5kN 31mm/kV D3017","EA",null,null,0]
[3144,"0189400","INSUL,STRAIN STAY 97kN BIL150/60   D3144","EA",null,null,0]
["8014","0175797","JOINT KIT 2-4C 600/1000V 16-25SQ   D8014","EA",null,null,0]
["8014","0175798","JOINT KIT 2-4C 600/1000V 35-50SQ   D8014","EA",null,null,0]
["8014","0175799","JOINT KIT 2-4C 600/1000V 70-95SQ   D8014","EA",null,null,0]
["8014","0175800","JOINT KIT 2-4C 600/1000V 120-150SQ D8014","EA",null,null,0]
["8014","0175801","JOINT KIT 2-4C 600/1000V 185-240SQ D8014","EA",null,null,0]
["3102","0404427","LUG, CRIMP CU 16.0SQxM12 F/H D3102","EA",null,null,0]
[3102,"0404432","LUG, CRIMP CU 25.0SQxM12 F/H D3102","EA",null,null,0]
["3102","0404422","LUG,CRIMP CU  70.0SQxM12 F/H       D3102","EA",null,null,0]
["3102","0404426","LUG,CRIMP CU 150.0SQxM12 F/H       D3102","EA",null,null,0]
["3102","0175874","LUG,CRIMP CU 185.0SQxM12 F/H       D3102","EA",null,null,0]
["3116","0165667","LUG,CRIMP PRE-INS 70SQ  ABC        D3116","EA",null,null,0]
["3024","0165723","LUG,BI-MET UNINSUL 50SQ ABC B/NEUT D3024","EA",null,null,0]
["3166","0180018","LUG,BI-MET  6.3- 9.0 M12 0 DEG I/C D3166","EA",null,null,0]
["3166","0180019","LUG,BI-MET  9.0-15.0 M12 0 DEG I/C D3166","EA",null,null,0]
["3074","0180039","LUG,AL 6.3- 9.0DIA 1B M12 0DEG I/C D3074","EA",null,null,0]
["3074","0180040","LUG,AL 9.0-15.0DIA 1B M12 0DEG I/C D3074","EA",null,null,0]
["3048","0165566","LINE TAP,TFR BRASS TINNED M12      D3048","EA",null,null,0]
["8012","0168686","MARKER,CABLE ROUTE CONCRETE        D8012","EA",null,null,0]
[3004,"0163908","NUT,EYE  40kN M16X2,0-6H BOLT      D3004","EA",null,null,0]
[3004,"0163909","NUT,EYE  70kN M20X2,5-6H BOLT      D3004","EA",null,null,0]
["3173","0403395","NUT,HX GALV M20                    D3173","KG",null,null,0]
[3169,"0163941","NAIL,CLOUT 40mm GALV               D3169","KG",null,null,0]
["3127","0197852","PIPE,NON MTLC:10 MM;LDPE;THK 1.6 MM","M",null,null,0]
["3127","0197853","PIPE,NON MTLC:16 MM;LDPE;THK 2 MM","M",null,null,0]
["3127","0163530","PIPE,NON MTLC:20 MM;HDPE;LG 2.5 M","EA",null,null,0]
["8018","0163518","PIPE,PVC CABLE 110NBx2.3 WALL THK  D8018","M",null,null,0]
["8018","0163519","PIPE,PVC CABLE 160NBx3.2 WALL THK  D8018","M",null,null,0]
["8018","0179500","PIPE,PVC CABLE 250NBx5.0 WALL THK  D8018","M",null,null,0]
["8023","0404262","PIPE,ST  100NBx3.9W/THK  3x2m LG   D8023","M",null,null,0]
["8028","0216398","PIN, EARTHING MV OHL CABLE TERM D8028","EA",null,null,0]
[3049,"0172393","PLATE,BLANK ALU POLE MK 25X150     D3049","EA",null,null,0]
[3011,"0163417","PLATE,STAY FOR 1500XM12 STAY ROD   D3011","EA",null,null,0]
[3012,"0163419","PLATE,STAY FOR 2000xM20 STAY ROD   D3012","EA",null,null,0]
["3020","0175465","PLATFORM,EQUIP.H-POLE 2600mm LG    D3020","EA",null,null,0]
["3016","0189726","PLATFORM,REGUL H-POLE 2600mm  LG.  D3016","EA",null,null,0]
["3221","0183882","PLASTER,SAND/CEMENT MIX 40kg       D3221","EA",null,null,0]
["8025","0185543","PLINTH,PRE-CAST TYPE A MINI-SUB    D8025","EA",null,null,0]
["8025","0185544","PLINTH,PRE-CAST TYPE B MINI-SUB    D8025","EA",null,null,0]
["8025","0185546","PLINTH,PRE-CAST 11+22kV 3 SF6 RMU  D8025","EA",null,null,0]
["8025","0185547","PLINTH,PRE-CAST 11+22kV 4 SF6 RMU  D8025","EA",null,null,0]
["8025","0216758","PLINTH,PRE-CAST 11+22kV 2 SF6 RMU  D8025","EA",null,null,0]
["8025","0185545","PLINTH,PRE-CAST 11+22kV CT-VT      D8025","EA",null,null,0]
["8025","0185549","PLINTH,PRE-CAST METER KIOSK        D8025","EA",null,null,0]
[3015,"0163790","ROD,THREADED GALV M20X350 WASH+NUTSD3015","EA",null,null,0]
[3015,"0163862","ROD,THREADED GALV M20X450 WASH+NUTSD3015","EA",null,null,0]
[3015,"0182711","ROD,THREADED GALV M20X750 WASH+NUTSD3015","EA",null,null,0]
[3015,"0163865","ROD,THREADED GALV M20X600 WASH+NUTSD3015","EA",null,null,0]
["3015","0163868","ROD,THREADED E/PL M6X500 WASH+NUTS D3015","EA",null,null,0]
[3015,"0163869","ROD,THREADED GALV M12X350 WASH+NUTSD3015","EA",null,null,0]
[6061,"0010270","SOCKET-TONGUE 16mm IEC 120kN       D6061","EA",null,null,0]
[3011,"0163396","STAYROD 1500XM12 NON-ADJUST        D3011","EA",null,null,0]
[3032,"0163398","STAY BRACKET LIGHT DUTY 45 DEG     D3032","EA",null,null,{"$f":"F134*E134","v":0}]
[3012,"0163402","STAYROD 2000XM20 NON-ADJUST        D3012","EA",null,null,0]
[7023,"0163405","STAYROD ASSY 2400xM24 NON-ADJUST   D7023","EA",null,null,0]
[7017,"0163406","SHACKLE,STRAIGHT BOLT TYPE 120kN   D7017","EA",null,null,0]
["3010","0163400","SHACKLE,D H/BACK PIN 70kN          D3010","EA",null,null,0]
["3082",163638,"SET SCREW,HX GALV M16X65  NUT+WASH D3082","EA",null,null,0]
["3082","0163639","SET SCREW,HX GALV M20X65  NUT+WASH D3082","EA",null,null,0]
["3082","0163640","SET SCREW,HX GALV M12X30 NUT+WASH  D3082","EA",null,null,0]
["3082","0163641","SET SCREW,HX GALV M12X65  NUT+WASH D3082","EA",null,null,0]
["3082","0404337","SET SCREW,HX GALV M16x40 NUT+WASH D3082","EA",null,null,0]
["8029","0227895","SEALANT STRIP FOR MINI-SUB/RMU     D8029","EA",null,null,0]
[3129,"0163938","STAPLE,GALVANISED  WIRE 40LG X 4 W D3129","KG",null,null,0]
[3130,"0164197","STRAPPING,ALMN  7,6X1,30           D3130","KG",null,null,0]
["3111","0164298","SADDLE,CABLE NYLON    9.5ID BI-PIN D3111","EA",null,null,0]
[3131,"0400902","STRAPPING,S/ST 12.0x0.75 304       D3131","EA",null,null,0]
[3117,"0164530","SPACER,WOODEN BLOCK 140 T/DIA 400LGD3117","EA",null,null,0]
[3050,"0168499","SPINDLE LONG M20x300 REGULAR       D3050","EA",null,null,0]
[3050,"0168509","SPINDLE M20x 50 SHANK              D3050","EA",null,null,0]
[3031,"0168553","STRAP,TIE ST GALV 910x50x6         D3031","EA",null,null,0]
["3031","0168775","STRAP,TIE ST GALV 701x50x6         D3031","EA",null,null,0]
[3202,"0172423","SIGN,DANGER ELECT SYMB 150x150x0.6 D3202","EA",null,null,0]
[7042,"0175857","SAG  ADJUSTOR  120kN               D7042","EA",null,null,0]
[2050,"0216387","SPINDLE LONG M20x300 RATCHET       D3050","EA",null,null,0]
[2050,"0219854","SPINDLE:SHORT M20 X 50MM RATCHET","EA",null,null,0]
[3131,"0400902","STRAPPING,S/ST 12.0x0.75 304       D3131","EA",null,null,0]
["3220","0184236","SUPPORT CRADLE,VOLT REG x1POLE MNTD3220","EA",null,null,0]
[3026,"0163399","THIMBLE,ST TO FIT 14mm DIA.WIRE    D3026","EA",null,null,0]
[3080,"0168374","TIE,SIDE GRVE B/FOX      INLAND D3080","EA",null,null,0]
[3080,"0168519","TIE,SIDE GRVE B/HARE      INLAND   D3080","EA",null,null,0]
[3080,"0402657","TIE,SIDE GRVE B/MINK     INLAND    D3080","EA",null,null,0]
[3211,"0175756","TIE,TOP GVE RD/CR F/WRAP FOX/35    D3211","EA",null,null,0]
[3211,"0175757","TIE,TOP GVE RD/CR F/WRAP MINK/PINE D3211","EA",null,null,0]
[3211,"0175758","TIE,TOP GVE RD/CR F/WRAP HARE/OAK  D3211","EA",null,null,0]
[3081,"0402517","TIE,TOP GRVE B/FOX INLAND          D3081","EA",null,null,0]
[3081,"0402575","TIE,TOP GRVE B/MINK INLAND        D3081","EA",null,null,0]
[3081,"0402577","TIE,TOP GRVE B/HARE INLAND         D3081","EA",null,null,0]
[3153,"0175985","TAP CONN,TOFF  9.0-15.0      I/C   D3153","EA",null,null,0]
[3153,"0179808","TAP CONN,T OFF 6.3- 9.0     I/C    D3153","EA",null,null,0]
[3153,"0179809","TAP CONN,TOFF 9.0-15.0 TO 6.3-9.0  D3153","EA",null,null,0]
["3147","0168325","TERM KIT 4C 1kV  70- 95SQ OD HSH   D3147","EA",null,null,0]
["3147","0168481","TERM KIT 4C 1kV 120-150SQ OD HSH D3147","EA",null,null,0]
[3098,"0179943","JOINT,NON-TEN AL  6.3-9.0 D I/C    D3098","EA",null,null,{"$f":"F175*E175","v":0}]
[3098,179944,"JOINT,NON-TEN AL 9.0-15.0 D I/C    D3098","EA",null,null,0]
["3014","0163896","WASHER,CURVED M20 65SQX6T 22D HOLE D3014","EA",null,null,0]
["3014","0163912","WASHER,SQ FLAT M20 64.25SQ 22.3DHL D3014","EA",null,null,0]
[3124,"0163344","WIRE STRAND,ST  3x3.35 1100MPA100m D3124","M",null,null,0]
[3170,"0164615","WIRE,BARBED GALV 12SWG  12.5kg     D3170","EA",null,null,0]
[3124,"0401337","WIRE STRAND,ST  7x4.00 1100MPA100m D3124","M",null,null,0]
[7036,"0401339","WIRE STRAND,ST 19X2.65 1100MPA     D7036","M",null,null,0]
["3137","0400660","WIRE,CU 16SQ 7/1.79 STR PVC BLACK D3137","M",null,null,0]
[{"$nulls":6},0]
[null,null,"SURGE ARRESTORS & FUSES"]
["3100","0165054","S/ARR DISTR  11kV MCOV 10kV INLND  D3100","EA",null,null,0]
["3100","0165055","S/ARR DISTR 22kV MCOV 19.2kV INLND D3100","EA",null,null,0]
["3100","0174780","S/ARR DISTR.  33kV MCOV 29kV       D3100","EA",null,null,0]
["3088","0165094","S/ARR,NEUTRAL  6.kV 10kA  O/BUSH   D3088","EA",null,null,0]
["6216","0401314","S/ARR S/CL    11kV MCOV 12kV  20  D6216","EA",null,null,0]
["6216","0401605","S/ARR S/CL    11kV MCOV 12kV 31 D6216","EA",null,null,0]
["6215","0187065","S/ARR S/CL   22kV MCOV  24kV  20 D6215","EA",null,null,0]
["6215","0400391","S/ARR S/CL   22kV MCOV 24kV 31 D6215","EA",null,null,0]
[6214,"0187064","S/ARR S/CL 33kV&44kV MCOV 36kV 20 D6214","EA",null,null,0]
[6214,"0400398","S/ARR S/CL 33kV&44kV MCOV 36kV 31 D6214","EA",null,null,0]
[6214,"0175534","S/ARR DIST 11kV 10kA POLYMER I/D D8010 ","EA",null,null,0]
[6214,"0175535","S/ARR DIST 22kV 10kA POLYMER I/D D8010","EA",null,null,0]
["3032","0165305","CB 80A 230V 5kA 1P D3034","EA"]
[3034,"0165302","CB 80A 400V 5kA 3P D3034"]
[3034,"0165306","CB 150A 400V 20kA 3P J25S/EQUIV.   D3034","EA",null,null,{"$f":"F200*E200","v":0}]
[3034,"0165317","CB 225A 400V 20kA 3P J25S/EQUIV.   D3034","EA"]
["3034","0165318","CB 300A 400V 20kA 3P L20Y/EQUIV.   D3034","EA",null,null,0]
["3034","0165199","CB 450A 400V 20kA 3P L20B/EQUIV. D3034","EA",null,null,0]
["3034","0165307","CB 600A 400V 20kA 3P L20Y/EQUIV.   D3034","EA",null,null,0]
[3034,165304,"CB 800A 400V 25kA 3P M25B/EQUIV. D3034","EA",null,null,0]
["3181","0165006","FUSE 160A 500V 120kA  SIZE NH 00   D3181","EA",null,null,0]
["3181","0165077","FUSE  63A 500V 120kA SIZE NH 00    D3181","EA",null,null,0]
["3181","0165078","FUSE  80A 500V 120kA SIZE NH 00    D3181","EA",null,null,0]
["3181","0165079","FUSE 125A 500V 120kA SIZE NH 00    D3181","EA",null,null,0]
["3208","0165065","FUSEHOLDER 22kV 100A FUSE-CUT/OUT  D3086","EA",null,null,0]
["3194","0174907","FUSEHOLDER 33kV 100A FUSE-CUT/OUT  D3194","EA",null,null,0]
["3182","0165096","FUSEHOLDER 1000V 160A DIN TYPE    D3182","EA",null,null,0]
["3182","0165097","BRACKET,LV FUSE HOLDER 40x8x505    D3182","EA",null,null,0]
["3086","0164282","BRACKET,L FUSE-CUT/OUT 22kV WDXARM D3086","EA",null,null,0]
["3086","0164283","BRACKET,L FUSE-CUT/OUT22KV ST XARM D3086","EA",null,null,0]
["3194","0175297","BRACKET,L FUSE C/OUT 33kV ST.XARM  D3194","EA",null,null,0]
["3194","0175298","BRACKET,L FUSE CUT/OUT 33kVWD.XARM D3194","EA",null,null,0]
["3208","0165066","LINK,SOLID 22kV FOR FUSE CUT-OUT   D3086","EA",null,null,0]
["3194","0175051","LINK SOLID 33KV FOR FUSE-C/OUT  D3194","EA",null,null,0]
["3194","0174682","FUSE-CUT/OUT BASE  33kV INLAND     D3194","EA",null,null,0]
["3086","0174939","FUSE-CUT/OUT BASE  22kV INLAND     D3086","EA",null,null,0]
[{"$nulls":6},0]
[null,null,"POLES AND CROSS ARMS"]
["0058","0164531","POLE,WOOD  5.0X 80-100 TOP DIA     D0058","EA",null,null,0]
["0050","0164527","POLE,WOOD  7.0X120-139 TOP DIA     D0050","EA",null,null,0]
["0055","0164561","POLE,WOOD  9.0X160-179 TOP DIA     D0055","EA",null,null,0]
["0055","0164589","POLE,WOOD  9.0X180-199 TOP DIA     D0055","EA",null,null,0]
["0052","0164562","POLE,WOOD 10.0X160-179 TOP DIA     D0052","EA",null,null,0]
["0052","0164563","POLE,WOOD 10.0X180-199 TOP DIA     D0052","EA",null,null,0]
["0052","0164523","POLE,WOOD 10.0X200-219 TOP DIA     D0052","EA",null,null,0]
["0051","0164566","POLE,WOOD 11.0X160-179 TOP DIA     D0051","EA",null,null,{"$f":"F231*E231","v":0}]
["0051","0164567","POLE,WOOD 11.0X180-199 TOP DIA     D0051","EA",null,null,0]
["0051","0164568","POLE,WOOD 11.0X200-219 TOP DIA     D0051","EA",null,null,0]
["0053","0164570","POLE,WOOD 12.0X160-179 TOP DIA     D0053","EA",null,null,0]
["0053","0164572","POLE,WOOD 12.0X180-199 TOP DIA     D0053","EA",null,null,0]
["0053","0164573","POLE,WOOD 12.0X200-219 TOP DIA     D0053","EA",null,null,0]
["0056","0164575","POLE,WOOD 13.0X160-179 TOP DIA     D0056","EA",null,null,0]
["0056","0164577","POLE,WOOD 13.0X180-199 TOP DIA     D0056","EA",null,null,0]
["0054","0164578","POLE,WOOD 14.0X160-179 TOP DIA     D0054","EA",null,null,0]
["0054","0164579","POLE,WOOD 14.0 X 180-199 H4 D0054","EA",null,null,0]
["0054","0164580","POLE,WOOD 14.0X200-219 TOP DIA     D0054","EA",null,null,0]
["0057","0164524","POLE,WOOD 15.0 x 200-219 TOP DIA     D0057","EA",null,null,0]
["0049","0164582","POLE,WOOD 16.0X180-199 TOP DIA     D0049","EA",null,null,0]
["0049","0164583","POLE,WOOD 16.0X200-219 TOP DIA     D0049","EA",null,null,0]
["0048","0164584","POLE,WOOD 18.0X180-199 TOP DIA     D0048","EA",null,null,0]
["0048","0164585","POLE,WOOD 18.0X200-219 TOP DIA     D0048","EA",null,null,0]
["0017","0212391","POLE,CONCRETE 11mx10kN ULTIMATE LOAD D0017","EA",null,null,0]
["0015","0210831","POLE,CONCRETE 12mx10kN ULTIMATE LOAD  D0015","EA",null,null,0]
["0016","0210832","POLE,CONCRETE 13mx10kN ULTIMATE LOAD D0016","EA",null,null,0]
["0018","0214880","POLE,CONCRETE 14mx10kN ULTIMATE LOAD D0018","EA",null,null,0]
["0060","0164586","XARM,WOOD 2.0X120-139 TOP DIA      D0060","EA",null,null,0]
["0061","0571208","X/ARM,POLE:120-139 22MM HOLES;LG 2.5 M","EA",null,null,0]
["0061","0571209","X/ARM,POLE:140-159 22MM HOLES;LG 2.5 M","EA",null,null,0]
["0063","0164551","XARM,WOOD 3.5X140-159 TOP DIA      D0063","EA",null,null,0]
["0063","0164552","XARM,WOOD 3.5X160-179 TOP DIA      D0063","EA",null,null,0]
["0064","0164556","XARM,WOOD 4.5X160-179 TOP DIA      D0064","EA",null,null,0]
["0066","0183978","XARM,WOOD 6.0X160-179 TOP DIA      D0066","EA",null,null,0]
["0065","0164559","XARM,WOOD 8.0X160-179 TOP DIA      D0065","EA",null,null,0]
[3001,"0168689","XARM,ST INTERM.T 90x65x8x2000LG    D3001","EA",null,null,0]
[3071,"0179726","XARM,ST STRAIN FOX 100x65x1700 LG  D3071","EA",null,null,0]
["3027","0168562","XARM,ST CHANNEL 1300LG FOX/MINK    D3027","EA",null,null,0]
["3000","0189877","XARM,ST CHANNEL 2400 LG.           D3000","EA",null,null,0]
[{"$nulls":6},0]
[null,null,"OVERHEAD LINE DISCONNECTORS"]
["3087","0207969","DISCONNECTOR 1PH 22kV 400A INLD    D3087","EA",null,null,0]
["3085","0222016","DISC  3PH 33kV 400A 1-POLE INLD    D3085","EA",null,null,0]
["3085","0222010","DISC  3PH 22kV 400A H-POLE INLD    D3085","EA",null,null,0]
[{"$nulls":6},0]
[null,null,"MV AND LV METERING"]
["3055","0168710","BOX,POLE TOP DIST.8-WAY   50A      D3055","EA",null,null,{"$f":"F270*E270","v":0}]
["3055",168787,"BOX,POLE TOP DIST.4-WAY  120A      D3055","EA",null,null,0]
["3055","0168788","BOX,POLE TOP DIST 2-WAY   50A      D3055","EA",null,null,0]
["3055","0245949","BOX,POLE TOP SPLIT METER 2-WAY 50A D3055","EA",null,null,0]
["3055","0245950","BOX,POLE TOP SPLIT METER  4-WAY120AD3055","EA",null,null,0]
["3055","0168574","BOX,POLE TOP DIST.4-WAY   50A      D3055","EA",null,null,0]
[3055,"0670228","Box, pole top split meter 2-way 120A","EA"]
[3055,"0229922","Box, pole top split meter 4-way 50A","EA"]
[3055,"0670312","Box, pole top split meter 6-way 50A","EA"]
[3055,"0670315","Box, pole top split meter 6-way 120A","EA"]
[3055,"0229921","Box, pole top split meter 8-way 50A","EA"]
["3132","0229552","SEAL, TOOL-LESS YELLOW D3132","EA",null,null,0]
[9421,"0621048","DIN Rail Single Phase PLC Smart Split Meter with CIU 60A","EA",null,null,0]
[9421,"0693612","DIN Rail Single Phase PLC Smart Split Meter with CIU 20A","EA",null,null,0]
[9421,"0693567","BS Footprint Single Phase Smart Split Meter with CIU + Internal/Plug-in GSM Modem","EA",null,null,0]
[9421,"0693565","BS Footprint Single Phase Smart Split Meter with CIU + External GSM Modem","EA",null,null,0]
[9421,"0621051","BS Footprint Three Phase Smart PLC Split Meter with CIU","EA",null,null,0]
[9421,"0693563","BS Footprint Three Phase Smart Split Meter with CIU + External GSM Modem","EA",null,null,0]
[9421,"0621052","Gateway/Data Concentrators (DCU) + Internal/Plug-in GSM Modem","EA",null,null,0]
[9421,"0693606","Gateway/Data Concentrators (DCU) + External GSM Modem","EA",null,null,0]
[9503,"0253383","MODEM,METERING GSM/GPRS D9503","EA",null,null,0]
[9503,"0223362","MODEM,METERING KOCOS ME12.5 GPRS D9503","EA",null,null,0]
[9503,"0223363","MODEM,METERING TRUCOM SMARTEE D9503","EA",null,null,0]
[9503,"0223364","MODEM,METERING TRUCOM SMARTOO D9503","EA",null,null,0]
[9503,"0223365","MODEM,METERING METACOM MC407 D9503","EA",null,null,0]
[9503,"0253384","MODEM, METERING METACOM MC402 D9503","EA",null,null,0]
[9503,"0198201","MODEM, METERING LANDIS+GYR GSM/GPRS D9503","EA",null,null,0]
[9420,"0207978","METER,kWh:L+G ZMD;100 A;RS232, 485;400 V","EA",null,null,0]
[9420,"0213154","METER,kWh:L+G ZMD ;1&5 A ;RS232+, 485","EA",null,null,0]
["3236","0168580","KIOSK, METER 16kVA SPU 1 PH D3236","EA",null,null,0]
["3236","0168335","KIOSK,METER 100kVA SPU 3PH         D3236","EA",null,null,0]
["3236","0168620","KIOSK,METER LV 100kVA LPU 3PH      3236","EA",null,null,0]
["3236","0168623","KIOSK,METER  200kVA LPU 3PH        D3236","EA",null,null,0]
["3236","0168624","KIOSK,METER  315kVA LPU 3PH        D3236","EA",null,null,0]
["3236","0168626","KIOSK,METER  500kVA LPU 3PH        D3236","EA",null,null,0]
["3236","0168758","KIOSK,METER   50kVA  3PH           D3236","EA",null,null,0]
["3236","0168867","KIOSK,METER   25kVA SPU 3PH        D3236","EA",null,null,0]
["2236","0169082","KIOSK,METER 1PH 12 WAY             D2236","EA",null,null,0]
["3236",182382,"KIOSK,METER   25kVA R/F 3PH  N/M   D3236","EA",null,null,0]
["3236","0182383","KIOSK,METER   50kVA R/F 3PH  N/M   D3236","EA",null,null,0]
["3233","0186798","KIOSK,METER 2 WAY 1PH 16kVA        D3236","EA",null,null,0]
["3236",186799,"KIOSK,METER 2 WAY 3PH 25kVA        D3236","EA",null,null,0]
[3236,214137,"Kiosk meter: 3ph; 25 kVA; 4 way","EA",null,null,0]
["3236",206261,"KIOSK,METER  25-50kVA 3PH PREPAY   D3236","EA",null,null,0]
["3236","0212967","KIOSK,METER  4 WAY 1PH 16kVA       D3236","EA",null,null,0]
["3236","0212968","KIOSK,METER  6 WAY 1PH 16kVA       D3236","EA",null,null,0]
["3236","0212972","KIOSK,METER  2 WAY 3PH 50kVA       D3236","EA",null,null,0]
["3236","0212973","KIOSK,METER  4 WAY 3PH 50kVA       D3236","EA",null,null,0]
["3236","0168612","KIOSK,METER  25-100kVA  3PH EMPTY  D3236","EA",null,null,0]
["3236","0168627","KIOSK,METER 3PH 4W CT/VT UNIT      D3236","EA",null,null,0]
["3236","0168732","KIOSK METER:3PH ;CT/VT ;BASE","EA",null,null,0]
["3236","0168600","KIOSK METER:3PH ;CT/VT ; EMPTY","EA",null,null,0]
["3236","0168733","METER KIOSK 100-500kVA ; BASE       D3236","EA",null,null,0]
["3236","0569540","Kiosk meter: 1ph; 4.6 kVA; 2 way; secure; pole mount","EA",null,null,0]
["3236","0569541","Kiosk meter: 1ph; 4.6 kVA; 4 way; secure; pole mount","EA",null,null,0]
["3236","0569542","Kiosk meter: 1ph; 4.6 kVA; 6 way; secure; pole mount","EA",null,null,0]
["3236","0569543","Kiosk meter: 1ph; 4.6 kVA; 8 way; secure; pole mount","EA",null,null,0]
["3236","0569544","Kiosk meter: 1ph; 14 kVA; 2 way; secure; pole mount","EA",null,null,0]
["3236","0569545","Kiosk meter: 1ph; 14 kVA; 4 way; secure; pole mount","EA",null,null,0]
["3236","0569546","Kiosk meter: 1ph; 14 kVA; 6 way; secure; pole mount","EA",null,null,0]
["3236","0569547","Kiosk meter: 1ph; 14 kVA; 8 way; secure; pole mount","EA",null,null,0]
["3236","0571155","Kiosk meter: 1ph; RAT/DC; secure; pole mount","EA",null,null,0]
["3236","0615212","Kiosk meter: 1ph; 16 kVA; 2 way prepay; ground mount","EA",null,null,0]
["3236","0660266","Kiosk meter: 1ph; 16 kVA; 4 way prepay; ground mount","EA",null,null,0]
["3236","0615214","Kiosk meter: 1ph; 16 kVA; 6 way prepay; ground mount","EA",null,null,{"$f":"F334*E334","v":0}]
["3236","0615215","Kiosk meter: 1ph; 16 kVA; 8 way prepay; ground mount","EA",null,null,0]
[3236,"0615216","Kiosk meter: 1ph; 16 kVA; 12 way prepay; ground mount","EA",null,null,0]
[{"$nulls":6},0]
[null,null,"MV AND LV CONDUCTORS INCLUDING ABC CABLES"]
["3136","0403027","COND,ACSR FOX     8.37D UNGRS    D3136","M",null,null,0]
["3136","0403031","COND,ACSR MINK     10.98D UNGRS    D3136","M",null,null,0]
["3136","0403029","COND,ACSR HARE     14.16D UNGRS    D3136","M",null,null,0]
["3136","0403130","COND,ACSR CHICADEE 18.87D UNGRS    D3136","M",null,null,0]
["3136","0400662","COND,ACSR KINGBIRD 23.90D UNGRS    D3136","M",null,null,0]
["3141","0171292","COND,AERIAL BUND 2C XLPE  35SQ     D3141","M",null,null,0]
["3141","0171299","COND,AERIAL BUND 3C XLPE  35SQ     D3141","M",null,null,0]
["3141","0171325","COND,AERIAL BUND 3C XLPE  70SQ     D3141","M",null,null,0]
["3141","0171267","COND,AERIAL BUND 4C XLPE  35SQ     D3141","M",null,null,0]
["3141","0171268","COND,AERIAL BUND 4C XLPE  70SQ     D3141","M",null,null,0]
[{"$nulls":6},0]
[null,null,"POLE MOUNTED:  TRANSFORMERS"]
["3021","0402804","TFR   16kVA  11kV/240V      INLAND D3021","EA",null,null,0]
["3021",402806,"TFR   16kVA  22kV/240V      INLAND D3021","EA",null,null,0]
["3192","0170854","TFR   16kVA 33kV/240V INLAND       D3192","EA",null,null,0]
["3021","0170771","TFR   32kVA 11kV/+240/-240V INLAND D3021","EA",null,null,0]
["3021","0170772","TFR   32kVA 22kV/+240/-240V INLAND D3021","EA",null,null,0]
["3192","0170853","TFR 32kVA  33kV/+240V/-220V INLND  D3192","EA",null,null,0]
["3021","0402812","TFR   25kVA  11kV/415V      INLAND D3021","EA",null,null,0]
["3021","0170583","TFR   25kVA  22kV/415V      INLAND D3021","EA",null,null,0]
["3192",170856,"TFR   25kVA  33kV/415V INLAND      D3192","EA",null,null,0]
["3021","0402816","TFR   50kVA  11kV/415V      INLAND D3021","EA",null,null,0]
["3021",170584,"TFR   50kVA  22kV/415V      INLAND D3021","EA",null,null,0]
["3192","0170779","TFR   50kVA  33kV/415V INLAND      D3192","EA",null,null,0]
["3021","0402810","TFR  100kVA 11kV/415V     INLAND  D3021","EA",null,null,0]
["3021","0402808","TFR  100kVA 22kV/415V       INLAND D3021","EA",null,null,0]
["3192","0170780","TFR  100kVA  33kV/415V INLAND      D3192","EA",null,null,0]
["3021",170585,"TFR  200kVA  11kV/415V    INLAND   D3021","EA",null,null,0]
["3021",402782,"TFR  200kVA  22kV/415V    INLAND   D3021","EA",null,null,0]
["3192","0170781","TFR  200kVA  33kV/415V INLAND      D3192","EA",null,null,0]
["3021","0404758","TFR  315KVA  11kV/415V  INLAND     D3021","EA",null,null,0]
["3021","0402818","TFR  315kVA  22kV/415V  INLAND     D3021","EA",null,null,0]
["3192","0170782","TFR  315kVA  33KV/415V INLAND      D3192","EA",null,null,0]
["3021","0402021","TFR  500kVA  11kV/415V    INLAND   D3021","EA",null,null,0]
["3021","0402023","TFR  500kVA  22kV/415V    INLAND   D3021","EA",null,null,0]
["3192","0170783","TFR  500kVA  33kV/415V INLAND      D3192","EA",null,null,0]
[{"$nulls":6},0]
[null,null,"POLE MOUNTED : CT-VT UNITS"]
["3118","0402167","CT+VT 11kV-110V B 3VT+3CT I/LD     D3118","EA",null,null,0]
["3118","0402169","CT+VT 22kV-110V B 3VT+3CT I/LD     D3118","EA",null,null,0]
["3118","0180234","CT+VT 33kV-110V B 3VT+3CT I/LD     D3118","EA",null,null,0]
[3118,"0216390","CT+VT 11kV-110V C 3VT+3CT I/LD     D3118","EA",null,null,0]
[3118,216394,"CT+VT 22kV-110V C 3VT+3CT I/LD     D3118","EA",null,null,0]
[{"$nulls":6},0]
[null,null,"AUTO-RECLOSERS, VOTAGE REGULATRS AND CAP BANKS"]
["3180","0185155","RECLOSER 11+22kV 400A 8kA IRTU     D3180","EA",null,null,0]
["3180","0182799","RECLOSER  33kV 400A 8kA WITH IRTU  D3180","EA",null,null,0]
["3119","0166882","VOLT REGULATOR  1PH 11kV 100A INLD D3119","EA",null,null,0]
["3119","0166883","VOLT REGULATOR 1PH 11kV 200A INLD  D3119","EA",null,null,0]
["3119",166879,"VOLT REGULATOR 1PH 22kV 100A INLD  D3119","EA",null,null,0]
[3119,"0166880","VOLT REGULATOR 1PH 22kV 200A INLD  D3119","EA",null,null,0]
[3218,"0215591","CAPACITOR 11kV 100kVAr 1-PH INLAND D3218  ","EA",null,null,0]
[3218,"0215593","CAPACITOR 11kV 150kVAr 1-PH INLAND D3218  ","EA",null,null,0]
[3218,215595,"CAPACITOR 11kV 200kVAr 3-PH INLAND D3218  ","EA",null,null,0]
[3218,"0215597","CAPACITOR 22kV 100kVAr 1-PH INLAND D3218  ","EA",null,null,0]
[3218,"0215599","CAPACITOR 22kV 200kVAr 1-PH INLAND D3218  ","EA",null,null,0]
[3218,"0215601","CAPACITOR 22kV 300kVAr 3-PH INLAND D3218  ","EA",null,null,0]
[3218,"0215603","SWITCH, CAPACITOR 11kV INLAND D3218","EA",null,null,0]
[3218,"0215605","SWITCH, CAPACITOR 22kV INLAND D3218  ","EA",null,null,0]
[3218,"0215608","RACK,CAPACITOR MOUNTING 1-PH CANS D3218  ","EA",null,null,0]
[3218,"0215610","RACK,CAPACITOR MOUNTING 3-PH CANS D3218  ","EA",null,null,0]
[{"$nulls":6},0]
[null,null,"MINI-SUBSTATIONS"]
["8050","0182406","M/SUB  315kVA 11kV/415V B CB INLD  D8050","EA",null,null,0]
["8050","0182408","M/SUB  500kVA 11kV/415V B CB INLD  D8050","EA",null,null,0]
["8050","0182410","M/SUB 1000kVA 11kV/415V B CB INLD  D8050","EA",null,null,0]
["8050","0170866","M/SUB  315kVA 11kV/415V B FH INLD  D8050","EA",null,null,0]
["8050","0170867","M/SUB  500kVA 11kV/415V B FH INLD  D8050","EA",null,null,0]
["8050","0182405","M/SUB 1000kVA 11kV/415V B FH INLD  D8050","EA",null,null,0]
["8051","0182413","M/SUB  315kVA 22kV/415V B CB INLD  D8051","EA",null,null,0]
["8051","0182415","M/SUB  500kVA 22kV/415V B CB INLD  D8051","EA",null,null,0]
["8051","0182417","M/SUB 1000kVA 22kV/415V B CB INLD  D8051","EA",null,null,0]
["8051","0170762","M/SUB  315kVA 22kV/415V B FH INLD  D8051","EA",null,null,{"$f":"F411*E411","v":0}]
["8051","0170763","M/SUB  500kVA 22kV/415V B FH INLD  D8051","EA",null,null,0]
["8051","0182412","M/SUB 1000kVA 22kV/415V B FH INLD  D8051","EA",null,null,0]
["8052","0182423","M/SUB  200kVA 11kV/415V A CB INLD  D8052","EA",null,null,0]
["8052","0182425","M/SUB  315kVA 11kV/415V A CB INLD  D8052","EA",null,null,0]
["8052","0182427","M/SUB  500kVA 11kV/415V A CB INLD  D8052","EA",null,null,0]
["8052","0182429","M/SUB 1000kVA 11kV/415V A CB INLD  D8052","EA",null,null,0]
["8052","0170874","M/SUB  200kVA 11kV/415V A FH INLD  D8052","EA",null,null,0]
["8052","0170875","M/SUB  315kVA 11kV/415V A FH INLD  D8052","EA",null,null,0]
["8052","0170876","M/SUB  500kVA 11kV/415V A FH INLD  D8052","EA",null,null,0]
["8052","0182422","M/SUB 1000kVA 11kV/415V A FH INLD  D8052","EA",null,null,0]
["8053","0182432","M/SUB  200kVA 22kV/415V A CB INLD  D8053","EA",null,null,0]
["8053","0182434","M/SUB  315kVA 22kV/415V A CB INLD  D8053","EA",null,null,0]
["8053","0182436","M/SUB  500kVA 22kV/415V A CB INLD  D8053","EA",null,null,0]
["8053","0182438","M/SUB 1000kVA 22kV/415V A CB INLD  D8053","EA",null,null,0]
["8053","0170869","M/SUB  200kVA 22kV/415V A FH INLD  D8053","EA",null,null,0]
["8053","0170870","M/SUB  315kVA 22kV/415V A FH INLD  D8053","EA",null,null,0]
["8053","0170871","M/SUB  500kVA 22kV/415V A FH INLD  D8053","EA",null,null,0]
["8053","0182431","M/SUB 1000kVA 22kV/415V A FH INLD  D8053","EA",null,null,0]
[{"$nulls":6},0]
[null,null,"RING MAIN UNIT (RMU)"]
["8060",180265,"RMU 11kV 630A 3R N/E INLND O/D     D8060","EA",null,null,0]
["8060","0209973","RMU 11kV 630A 4R N/E INLND O/D     D8060","EA",null,null,0]
["8060","0180269","RMU 11kV630A200A2R1B N/E INLND O/D D8060","EA",null,null,0]
[8060,"0235400","RMU 11kV 630A200A 2R1B N/E I/L I/D D8060","EA",null,null,0]
["8060","0215115","RMU 11kV 630A630A 2R1B N/E INLNDO/DD8060","EA",null,null,0]
["8060","0211489","RMU 11kV630A200A2R2B N/E INLND O/D D8060","EA",null,null,0]
["8060","0221314","RMU 11kV630A630A2R2B N/E INLND O/D D8060","EA",null,null,0]
["8060","0180267","RMU 22kV 630A 3R N/E INLND O/D     D8060","EA",null,null,0]
["8060","0209975","RMU 22kV 630A 4R N/E INLND O/D     D8060","EA",null,null,0]
["8060","0180271","RMU 22kV630A200A2R1B N/E INLND O/D D8060","EA",null,null,0]
["8060","0235402","RMU 22kV 630A200A 2R1B N/E I/L I/D D8060","EA",null,null,0]
[8060,"0242386 ","RMU 22kV 630A630A 2R1B N/E I/L 0/D D8060 ","EA",null,null,0]
["8060",211491,"RMU 22kV630A200A2R2B N/E INLND O/D D8060","EA",null,null,0]
[{"$nulls":6},0]
[null,null,"RING MAIN UNIT (RMU)-IRTU"]
[8060,"0557807","SWITCHGEAR:RMU 11KV 630A 3R IL OD IRTU","EA",null,null,0]
[8060,"0557815","SWITCHGEAR:RMU 11KV 200A 2R1B ILOD IRTU","EA",null,null,0]
[8060,"0557820","SWITCHGEAR:RMU 11KV 630A 2R1B ILOD IRTU","EA",null,null,0]
[8060,"0557812","SWITCHGEAR:RMU 11KV 200A 2R1B ILID IRTU","EA",null,null,0]
[8060,"0557814","SWITCHGEAR:RMU 11KV 630A 2R2B ILOD IRTU","EA",null,null,0]
[8060,"0557810","SWITCHGEAR:RMU 22KV 630A 3R ILOD IRTU","EA",null,null,0]
[8060,"0557813","SWITCHGEAR:RMU 22KV 200A 2R1B ILOD IRTU","EA",null,null,0]
[8060,"0557809","SWITCHGEAR:RMU 22KV 630A 2R1B ILOD IRTU","EA",null,null,0]
[8060,"0557826","SWITCHGEAR:RMU 22KV 200A 2R1B ILID IRTU","EA",null,null,0]
[8060,"0557828","SWITCHGEAR:RMU 22KV 630A 2R2B ILOD IRTU","EA",null,null,0]
[8060,"0557817","SWITCHGEAR:RMU 22KV 200A 2R2B ILOD IRTU","EA",null,null,0]
[{"$nulls":6},0]
[null,null,"CT-VT UNIT -GROUND MOUNTED"]
["3118","0175942","CT+VT 11kV-110V B 3VT+3CT CBL I/LD D3118","EA",null,null,{"$f":"F460*E460","v":0}]
["3118","0216388","CT+VT 11kV-110V C 3VT+3CT CBL I/LD D3118","EA",null,null,0]
["3118","0175967","CT+VT 22kV-110V B 3VT+3CT CBL I/LD D3118","EA",null,null,0]
[3118,"0216392","CT+VT 22kV-110V C 3VT+3CT CBL I/LD D3118","EA",null,null,0]
[{"$nulls":6},0]
[null,null,"MEDIUN VOLTAGE (MV) CABLES"]
["8001","0171388","CABLE,ELECT:EUX3KCQ 11KV 3C;CU;25 MM2","M",null,null,0]
["8001","0171386","CABLE,ELECT:EUX3MCQ 11KV 3C;CU;50 MM2","M",null,null,0]
["8001","0403148","CABLE,ELECT:EUX3PCQ 11KV 3C;CU;95 MM2","M",null,null,0]
["8001","0171352","CABLE,ELECT:EUX3SCQ 11KV 3C;CU;185 MM2","M",null,null,0]
["8001","0184296","CABLE,ELECT:EUX3UCQ 11KV 3C;CU;300 MM2","M",null,null,0]
[8001,"0578940","CABLE,ELECT:EUX3PAQ 11KV 3C;AL;95 MM2","M",null,null,0]
[8001,"0578941","CABLE,ELECT:EUX3SAQ 11KV 3C;AL;185 MM2","M",null,null,0]
[8001,"0578950","CABLE,ELECT:EUX3UAQ 11KV 3C;AL;300 MM2","M",null,null,0]
[8001,577428,"CABLE,ELECT:EUX1MCQ 11KV 1C;CU;50 MM2","M",null,null,0]
[8001,"0577429","CABLE,ELECT:EUX1PCQ 11KV 1C;CU;95 MM2","M",null,null,0]
[8001,"0577430","CABLE,ELECT:EUX1SCQ 11KV 1C;CU;185 MM2","M",null,null,0]
[8001,"0577431","CABLE,ELECT:EUX1UCQ 11KV 1C;CU;300 MM2","M",null,null,0]
["8001","0171351","CABLE,ELECT:EUX1XCQ 11KV 1C;CU;630 MM2","M",null,null,0]
["8001","0171384","CABLE,ELECT:FUX3MCQ 22KV 3C;CU;50 MM2","M",null,null,0]
["8001",171204,"CABLE,ELECT:FUX3PCQ 22KV 3C;CU;95 MM2","M",null,null,0]
["8001","0171384","CABLE,ELECT:FUX3MCQ 22KV 3C;CU;50 MM2","M",null,null,0]
["8001","0175763","CABLE,ELECT:ESKOM FUX3SCQ;CU;185 MM2","M",null,null,0]
["8001","0578942","CABLE,ELECT:FUX3MAQ 22KV 3C;AL;50 MM2","M",null,null,0]
["8001","0578943","CABLE,ELECT:FUX3PAQ 22KV 3C;AL;95 MM2","M",null,null,0]
["8001","0578944","CABLE,ELECT:FUX3SAQ 22KV 3C;AL;185 MM2","M",null,null,0]
["8001","0578945","CABLE,ELECT:FUX3UAQ 22KV 3C;AL;300 MM2","M",null,null,0]
["8001","0577432","CABLE,ELECT:FUX1MCQ 22KV 1C;CU;50 MM2","M",null,null,0]
["8001","0577433","CABLE,ELECT:FUX1PCQ 22KV 1C;CU;95 MM2","M",null,null,0]
["8001","0577434","CABLE,ELECT:FUX1SCQ 22KV 1C;CU;185 MM2","M",null,null,0]
["8001","0577435","CABLE,ELECT:FUX1UCQ 22KV 1C;CU;300 MM2","M",null,null,0]
["8001","0182545","CABLE,ELECT:FUX1XCQ 22KV 1C;CU;630 MM2","M",null,null,0]
["8001","0578948","CABLE,ELECT:GUX3MCQ 33KV 3C;CU;50 MM2","M",null,null,0]
["8001","0578949","CABLE,ELECT:GUX3PCQ 33KV 3C;CU;95 MM2","M",null,null,0]
["8001","0578953","CABLE,ELECT:GUX3SCQ 33KV 3C;CU;185 MM2","M",null,null,0]
["8001","0578954","CABLE,ELECT:GUX3UCQ 33KV 3C;CU;300 MM2","M",null,null,0]
["8001","0578946","CABLE,ELECT:GUX3MAQ 33KV 3C;AL;50 MM2","M",null,null,0]
["8001","0578951","CABLE,ELECT:GUX3PAQ 33KV 3C;AL;95 MM2","M",null,null,0]
["8001","0578947","CABLE,ELECT:GUX3SAQ 33KV 3C;AL;185 MM2","M",null,null,0]
["8001","0578952","CABLE,ELECT:GUX3UAQ 33KV 3C;AL;300 MM2","M",null,null,0]
["8001","0577436","CABLE,ELECT:GUX1MCQ 33KV 1C;CU;50 MM2","M",null,null,0]
["8001","0577437","CABLE,ELECT:GUX1PCQ 33KV 1C;CU;95 MM2","M",null,null,0]
["8001","0577438","CABLE,ELECT:GUX1SCQ 33KV 1C;CU;185 MM2","M",null,null,0]
["8001","0577439","CABLE,ELECT:GUX1UCQ 33KV 1C;CU;300 MM2","M",null,null,0]
["8001","0577440","CABLE,ELECT:GUX1XCQ 33KV 1C;CU;630 MM2","M",null,null,0]
[{"$nulls":6},0]
[null,null,"LOW VOLTAGE (LV) CABLES"]
["3128","0014474","CABLE,ELECT:BVX2HCV;CU;16 MM2;PVC D3128","M",null,null,0]
["3128","0404103","CABLE,ELECT:BVX3HVC;CU;16 MM2;PVC D3128","M",null,null,0]
["3128","0404766","CABLE,ELECT:BVX4HCV;CU;16 MM2;PVC D3128","M",null,null,0]
[3128,"0403473","CABLE ELECT:1 KV;2C;CU;25 MM2;STL WIRE","M",null,null,0]
["3128","0171198","CABLE,ELECT:BVX3KCV;CU;25 MM2;PVC D3128","M",null,null,0]
["3128","0404767","CABLE,ELECT:BVX4KCV;CU;25 MM2;PVC D3128","M",null,null,0]
["3128","0404634","CABLE,ELECT:BVX2LCV;CU;35 MM2;PVC D3128","M",null,null,0]
["3128","0404489","CABLE,ELECT:BVX3LCV;CU;35 MM2;PVC   D3128","M",null,null,0]
["3128","0400639","CABLE,ELECT:BVX4LCV;CU;35 MM2;PVC D3128","M",null,null,0]
[3128,"0403353","CABLE ELECT:1 KV;4C;CU;50 MM2;STL WIRE","M",null,null,0]
[3128,"0171333","CABLE ELECT:1 KV;3C;CU;70 MM2;STL WIRE","M",null,null,0]
["3128","0400641","CABLE,ELECT:BVX4NCV;CU;70 MM2;PVC D3128","M",null,null,0]
["3128","0403090","CABLE,ELECT:BVX4QCV;CU;120 MM2;PVC D3128","M",null,null,0]
["3128","0404119","CABLE,ELECT:BVX4RCV;CU;150 MM2;PVC D3128","M",null,null,0]
["3128","0403094","CABLE,ELECT:BVX4SCV;CU;185 MM2;PVC D3128","M",null,null,0]
["3128","0171185","CABLE ELECT:1 KV;4C;CU;240 MM2;STL WIRE","M",null,null,0]
["8026","0186800","CABLE .75kV 1C  70.0SQ CU FLEX     D8026","M",null,null,0]
["8026","0186831","CABLE .75kV 1C 185.0SQ CU FLEX     D8026","M",null,null,{"$f":"F524*E524","v":0}]
["3128","0404761","CABLE,ELECT:BVX12DCV;CU;2.5 MM2;PVC D3128","M",null,null,0]
["3128","0404122","CABLE,ELECT:BVX2ECV;CU;4 MM2;PVC D3128","M",null,null,0]
["3140","0171296","CABLE 1kV 2C  4mmSQ CONCENT CU     D3140","M",null,null,0]
["3140","0171294","CABLE 1kV 2C 10SQ CU CONC D3140","M",null,null,0]
[" ","0229799","CABLE 1kV 1C 10SQ CONCENT CU X1 COMMS","M",null,null,0]
[" ","0632881","CABLE,ELECT:230 V ;XLPE ;2C ;6 MM2","M",null,null,{"$f":"F530*E530","v":0}]
[{"$nulls":6},0]
[null,null,"TERMINATIONS - MEDIUN VOLTAGE (MV) CABLE "]
["8006","0687232","KIT TERM:3C;ID;25-70 MM2;11 KV;XLPE","EA",null,null,0]
[8006,"0687233","KIT TERM:3C;OD;25-70 MM2;11 KV;XLPE","EA"]
["8006","0687230","KIT TERM:3C;ID;25-70 MM2;11 KV;ES;XLPE","EA"]
[8006,"0175642","KIT,TERM:3C ;XLPE;11KV; ID 50-120 MM2","EA"]
["8006","0175643","KIT,TERM:3C ;XLPE ;11KV; OD ;50-120 MM2","EA"]
["8006","0175644","KIT,TERM:3C ;XLPE; ES;11KV; ID ;50-120 MM2","EA"]
["8006","0175645","KIT,TERM:3C ;XLPE; ;11KV; ID 95-185","EA"]
["8006","0175646","KIT,TERM:3C ;XLPE ;11KV; OD ;95-185 MM2","EA"]
["8006","0215114","KIT,TERM:3C ;XLPE; ES ;11KV; ID ;95-185 MM2","EA"]
[8006,"0644722","KIT,TERM:3C ;ID ;185-300 ;11 KV ;XLPE","EA"]
[8006,"0184239","KIT,TERM:3C ;XLPE ;11KV; OD ;185-300 MM2","EA"]
[8006,"0687231","KIT TERM:3C;ID;185-300 MM2;11 KV;ES;XLPE","EA"]
["8006","0251729","KIT,TERM:1C ;XLPE ;95-185 MM2;11KV; ID","EA",null,null,0]
["8006","0184238","KIT,TERM:1C ;XLPE ;11KV; OD ;95-185 MM","EA",null,null,0]
["8006","0251730","KIT,TERM:1C ;XLPE ;400 MM2 ;11KV; ID","EA",null,null,0]
["8006","0635343","KIT,TERM:1C;XLPE;ID;630 MM2;11 KV","EA",null,null,0]
["8006","0635349","KIT,TERM:XLPE; 1C ;LCC ;ID ;95-185 MM2;11 KV","EA",null,null,0]
[8006,"0251729","KIT,TERM:1C ;XLPE ;95-185 MM2;11KV; ID","EA",null,null,0]
[8006,"0635352","KIT,TERM: XLPE; 1C ;LCC ;ID ;185-300 ;11 KV","EA",null,null,0]
[8006,"0635334","KIT,TERM:1C;XLPE;ID;185-300 MM2;11 KV","EA",null,null,0]
["8006","0168309","KIT,TERM:3C ;XLPE ;22KV; ID ;25-70 MM2","EA",null,null,0]
["8006","0169094","KIT,TERM:3C ;XLPE ;22KV; OD ;25-70 MM2","EA",null,null,0]
["8006","0175647","KIT,TERM:3C ;XLPE ;22KV; ID ;95-185","EA",null,null,0]
["8006","0175648","KIT,TERM:3C ;XLPE ;22KV; OD ;95-185 MM2","EA",null,null,0]
["8006","0635328","KIT,TERM:3C ;ID ;185-300 ;22 KV ;XLPE","EA",null,null,0]
["8006","0624566","KIT,TERM:3C ;XLPE ;OD ;185-300 ;22 KV","EA",null,null,0]
["8006","0644725","KIT,TERM:1C ;LCC ;ID ;95-185 ;22 KV","EA",null,null,0]
["8006","0251731","KIT,TERM:1C;XLPE;22KV; ID;95-185 MM2","EA",null,null,0]
["8006","0635333","KIT,TERM:1C;XLPE;ID;185-300 MM2;22 KV","EA",null,null,0]
[8006,"0644726","KIT,TERM:1C ;LCC ;ID ;185-300 ;22 KV","EA",null,null,0]
["8006","0624563","KIT,TERM:3C ;XLPE ;OD ;50-120 ;33 KV","EA",null,null,0]
["8006","0635317","KIT,TERM:3C ;ID ;50-120 ;33 KV ;XLPE","EA",null,null,0]
["8006","0635324","KIT,TERM:3C ;ID ;95-185 ;33 KV ;XLPE","EA",null,null,0]
["8006","0635329","KIT,TERM:3C ;ID ;185-300 ;33 KV ;XLPE","EA",null,null,0]
["8006","0624565","KIT,TERM:3C ;XLPE ;OD ;185-300 ;33 KV","EA",null,null,0]
["8006","0635318","KIT,TERM:1C;XLPE;ID;50-120 MM2;33 KV","EA",null,null,0]
[8006,"0644727","KIT,TERM:1C ;LCC ;ID ;50-120 ;33 KV","EA",null,null,0]
[8006,"0635345","KIT,TERM:1C ;LCC ;ID ;95-185 MM2;33 KV","EA",null,null,0]
["8006","0635325","KIT,TERM:1C;XLPE;ID;185-300 MM2;33 KV","EA",null,null,0]
["8006","0635330","KIT,TERM:1C;XLPE;ID;185-300 MM2;33 KV","EA",null,null,0]
[8006,"0635355","KIT,TERM:1C ;LCC ;ID ;185-300 MM2;33 KV","EA",null,null,0]
["8011","0175531","SHROUD,STRAIGHT  95-300SQ 3C       D8011","EA",null,null,0]
["8016","0175772","CONNECTOR KIT,SEP UNSCR 11kV 16-35 D8016","EA",null,null,0]
["8016","0175773","CONNECTOR KIT,SEP UNSCR 11kV 50-95 D8016","EA",null,null,0]
["8016","0175774","CONNECTOR KIT,SEP UNSC 11kV 120-185D8016","EA",null,null,0]
["8017",580423,"CONNECTOR:SEP SCR CBL 1 11KV 25-50","EA",null,null,0]
["8017","0580424","CONNECTOR:SEP SCR CBL 1 11KV 70-185","EA",null,null,0]
["8017","0580425","CONNECTOR:SEP SCR CBL 1 11KV 240-400","EA",null,null,0]
["8017","0580428","CONNECTOR:SEP EXT SCR 11KV 25-50","EA",null,null,0]
["8017","0580429","CONNECTOR:SEP EXT SCR 11KV 70-185","EA",null,null,0]
["8017","0580430","CONNECTOR:SEP EXT SCR 11KV 240-400","EA",null,null,0]
["8017","0580434","CONNECTOR:SEP EXT SCR 11KV 25-50 S/ARR","EA",null,null,0]
["8017","0580435","CONNECTOR:SEP EXT SCR 11KV 70-185 S/ARR","EA",null,null,0]
["8017","0580436","CONNECTOR:SEP EXT SCR 11KV240-400 S/ARR","EA",null,null,0]
["8017","0175782","CONNECTOR,SEP SCR CBL 1 22kV 25-50 D8017","EA",null,null,0]
["8017","0175783","CONNECTOR,SEP SCR CBL 1 22kV 70-185D8017","EA",null,null,{"$f":"F588*E588","v":0}]
[8017,"0580427","CONNECTOR:SEP SCR CBL 1 22KV 240-400","EA",null,null,0]
["8017","0222311","CONNECTOR,SEP EXT SCR 22kV 25-50   D8017","EA",null,null,0]
["8017","0222312","CONNECTOR,SEP EXT SCR 22kV 70-185  D8017","EA",null,null,0]
["8017","0580433","CONNECTOR:SEP EXT SCR 22KV 240-400","EA",null,null,0]
["8017","0230639","CONNECTOR,SEP EXT SCR 22kV 25-50+SAD8017","EA",null,null,0]
["8017","0230640","CONNECTOR,SEP EXT SCR 22kV70-185+SAD8017","EA",null,null,0]
["8017","0580437","CONNECTOR:SEP EXT SCR 22KV240-400 S/ARR","EA",null,null,0]
["8017","0179499","BLANK INSERT 630A TYPE C D8017","EA",null,null,0]
["8017","0179497","BUSHING INTERMIDIATE 630A TYPE C D8017","EA",null,null,0]
["8017","0179498","END PLUG TEST POINT CAP 630A TYPE C D8017","EA",null,null,0]
["8017","0179495","TRI-FURCATING KIT,SCR 22kV 3C 25-50D8017","EA",null,null,0]
["8017","0179496","TRI-FURCATING KIT,SCR 22kV 3C70-185D8017","EA",null,null,0]
[8004,"0251724","TRIFURCATING KIT,SCR MV 3m XLPE 95-300D8004","EA",null,null,0]
[{"$nulls":6},0]
[null,null,"JOINTS - MEDIUN VOLTAGE (MV) CABLE"]
["8008","0683106","KIT CABLE JOINT:3C;11 KV;25-70 MM2;XLPE","EA",null,null,0]
["8008","0683107","KIT CABLE JOINT:3C;11 KV;50-120 MM2;XLPE","EA",null,null,0]
["8008","0580846","KIT,CABLE JOINT:3C ;11 KV ;95-185 ;XLPE","EA",null,null,0]
["8008","0580847","KIT,CABLE JOINT:3C ;11 KV ;185-300","EA",null,null,0]
["8008","0580854","KIT,CABLE JOINT:3C ;11 KV ;50-120 ;TRIF","EA",null,null,0]
["8008","0683110","KIT CABLE JOINT:3C;11 KV;95-185 MM2;TRIF","EA",null,null,0]
["8008","0580855","KIT,CABLE JOINT:3C ;11 KV ;185-300;TRIF","EA",null,null,0]
["8008","0635506","KIT,CABLE JOINT:1C ;11 KV ;50-120 ;XLPE","EA",null,null,0]
["8008","0635509","KIT,CABLE JOINT:1C ;11 KV ;95-185 ;XLPE","EA",null,null,0]
["8008",635510,"KIT,CABLE JOINT:1C ;11 KV ;185-300","EA",null,null,0]
["8008","0182553","KIT,CABLE JOINT:1C ;11 KV ;630 ;XLPE","EA",null,null,0]
["8008","0683108","KIT CABLE JOINT:3C;22 KV;25-70 MM2;XLPE","EA",null,null,0]
["8008","0180200","KIT,CABLE JOINT:3C ;22 KV ;50-120 ;XLPE","EA",null,null,0]
["8008","0580849","KIT,CABLE JOINT:3C ;22 KV ;95-185 ;XLPE","EA",null,null,0]
["8008","0580850","KIT,CABLE JOINT:3C ;22 KV ;185-300","EA",null,null,0]
["8008","0175805","KIT,CABLE JOINT:3C ;22 KV ;25-70 ;TRIF","EA",null,null,0]
["8008","0580856","KIT,CABLE JOINT:3C ;22 KV ;50-120 ;TRIF","EA",null,null,0]
["8008","0580861","KIT,CABLE JOINT:3C ;22 KV ;95-185 ;TRIF","EA",null,null,0]
["8008","0635511","KIT,CABLE JOINT:3C ;22 KV ;185-300 TRIF","EA",null,null,0]
["8008","0635507","KIT,CABLE JOINT:1C ;22 KV ;50-120 ;XLPE","EA",null,null,0]
["8008","0635508","KIT,CABLE JOINT:1C ;22 KV ;95-185 ;XLPE","EA",null,null,0]
["8008","0624549","KIT,CABLE JOINT:1C ;22 KV ;185-300","EA",null,null,0]
["8008","0580851","KIT,CABLE JOINT:3C ;33 KV ;25-70 ;XLPE","EA",null,null,0]
["8008","0624550","KIT,CABLE JOINT:3C ;33 KV ;50-120 ;CU/AL","EA",null,null,0]
["8008","0580858","KIT,CABLE JOINT:3C ;33 KV ;50-120 ;XLPE","EA",null,null,0]
["8008","0580852","KIT,CABLE JOINT:3C ;33 KV ;95-185 ;XLPE","EA",null,null,0]
["8008","0580853","KIT,CABLE JOINT:3C ;33 KV ;185-300","EA",null,null,0]
["8008","0635503","KIT,CABLE JOINT:3C ;33 KV ;50-120 ;TRIF","EA",null,null,0]
["8008","0580859","KIT,CABLE JOINT:3C ;33 KV ;95-185 ;TRIF","EA",null,null,0]
["8008","0580860","KIT,CABLE JOINT:3C ;33 KV ;185-300 TRIF","EA",null,null,0]
["8008","0683109","KIT CABLE JOINT:1C;33 KV;95-185 MM2;XLPE","EA",null,null,0]
["8008","0624551","KIT,CABLE JOINT:1C ;33 KV ;185-300 ;XLPE","EA",null,null,0]
["8021","0184780","JOINT KIT,TRANS   3C 11kV 16-35    D8021","EA",null,null,0]
[8021,"0689139","KIT CABLE JOINT:3;11 KV;25-70 MM2;TRANS","EA",null,null,0]
["8021","0179925","JOINT KIT,TRANS   3C 11kV 50-95    D8021","EA",null,null,0]
["8021","0179926","JOINT KIT,TRANS   3C 11kV 120-185  D8021","EA",null,null,0]
["8021","0683112","KIT CABLE JOINT:3C;11 KV;185-300 MM2","EA",null,null,0]
["8021","0179927","JOINT KIT,TRANS   3C 11kV 240-400  D8021","EA",null,null,0]
["8021","0184801","JOINT KIT,TRANS   3C 22kV 25       D8021","EA",null,null,0]
["8021","0179928","JOINT KIT,TRANS   3C 22kV 35-70    D8021","EA",null,null,0]
["8021","0179929","JOINT KIT,TRANS   3C 22kV 95-240   D8021","EA",null,null,0]
["8021",580868,"KIT,CABLE JOINT:19/33 KV;TRATR50-95","EA",null,null,0]
["8021","0580869","KIT,CABLE JOINT:19/33 KV;TRTR120-185","EA",null,null,0]
["8021","0580870","KIT,CABLE JOINT:19/33 KV;TRTR240-400","EA",null,null,0]
[{"$nulls":6},0]
[null,null,"Bedding and Blanket Soil for Cables"]
[null,null,"Imported Soil ","m³",null,null,0]
[{"$nulls":6},0]
[{"$nulls":6},{"$f":"SUM(G5:G651)","v":0}]

{"sheet":"Summary","index":3,"n_rows":38,"n_cols":3,"rows_kept":38,"merged":[[0,0,1,0],[35,0,35,1],[36,0,36,1],[37,0,37,1]]}
["NCOU "]
[null,"Minor & Major Reticulation Summary "]
[null,null,"Amount"]
["SECTION 1","Site Establishement",{"$f":"'Section 1-2 (P&Gs)'!G15","v":0}]
["SECTION 2","Transport",{"$f":"'Section 1-2 (P&Gs)'!G28","v":0}]
["SECTION 3","Bush Clearing & Tree Felling",{"$f":"'Section 3-30 (Labour)'!G7","v":0}]
["SECTION 4","Excavations",{"$f":"'Section 3-30 (Labour)'!G129","v":0}]
["SECTION 5","Plant Poles",{"$f":"'Section 3-30 (Labour)'!G161","v":0}]
["SECTION 6","Stay  Install & Assemble MV Stays complete",{"$f":"'Section 3-30 (Labour)'!G168","v":0}]
["SECTION 7","Assemble MV Structures ",{"$f":"'Section 3-30 (Labour)'!G247","v":0}]
["SECTION 8","Assemble LV Structures",{"$f":"'Section 3-30 (Labour)'!G258+'Section 3-30 (Labour)'!G268+'Section 3-30 (Labour)'!G278","v":0}]
["SECTION 9","Install & Assemble LV Stays complete",{"$f":"'Section 3-30 (Labour)'!G285","v":0}]
["SECTION 10","Pole Top & secure pole top metering kiosks Installation (Smart Metering)",{"$f":"'Section 3-30 (Labour)'!G297","v":0}]
["SECTION 11","Conductor Stringing (Tension, Regulate & Bind In)",{"$f":"'Section 3-30 (Labour)'!G319","v":0}]
["SECTION 12","Installing of Transformers and Structures",{"$f":"'Section 3-30 (Labour)'!G350","v":0}]
["SECTION 13","Installation for Overhead Line ",{"$f":"'Section 3-30 (Labour)'!G359","v":0}]
["SECTION 14","Transformer LV Protection",{"$f":"'Section 3-30 (Labour)'!G372","v":0}]
["SECTION 15","Install CT-VT, Recloser, Voltage Regulator, Shunt Capacitor Banks.",{"$f":"'Section 3-30 (Labour)'!G398","v":0}]
["SECTION 16","Equipment/Section Cut-Outs or Disconnectors ",{"$f":"'Section 3-30 (Labour)'!G414","v":0}]
["SECTION 17","Miniature Substation",{"$f":"'Section 3-30 (Labour)'!G424","v":0}]
["SECTION 18","Ring Main Unit (RMU)",{"$f":"'Section 3-30 (Labour)'!G431","v":0}]
["SECTION19","Ground Mounted CT-VT Unit",{"$f":"'Section 3-30 (Labour)'!G438","v":0}]
["SECTION 20","Ground Mounted Meter Kiosk",{"$f":"'Section 3-30 (Labour)'!G450","v":0}]
["SECTION 21","Earthing Installation: Overhead and Underground ",{"$f":"'Section 3-30 (Labour)'!G459","v":0}]
["SECTION 22","Underground Cable Installation",{"$f":"'Section 3-30 (Labour)'!G510","v":0}]
["SECTION 23","MV/LV Cable Termination",{"$f":"'Section 3-30 (Labour)'!G558","v":0}]
["SECTION 24","MV/LV Cable Joints",{"$f":"'Section 3-30 (Labour)'!G578","v":0}]
["SECTION 25","Pole Numbering",{"$f":"'Section 3-30 (Labour)'!G582","v":0}]
["SECTION 26","Service Connection Installation",{"$f":"'Section 3-30 (Labour)'!G597+'Section 3-30 (Labour)'!G606","v":0}]
["SECTION 27","Equipment Fencing",{"$f":"'Section 3-30 (Labour)'!G615","v":0}]
["SECTION 28","Equipment Dismantling",{"$f":"'Section 3-30 (Labour)'!G653","v":0}]
["SECTION 29","Bil & Bonding",{"$f":"'Section 3-30 (Labour)'!G656","v":0}]
["SECTION 30","Equipment Testing",{"$f":"'Section 3-30 (Labour)'!G669","v":0}]
["SECTION 31","Material",{"$f":"'Section 31 (Material) '!G652","v":0}]
[]
["TOTAL SCHEDULE OF QUANTITIES",null,{"$f":"SUM(C4:C34)","v":0}]
["Value Added Tax @ 15%",null,{"$f":"SUM(C36*15%)","v":0}]
["Total (incl VAT)",null,{"$f":"SUM(C36:C37)","v":0}]

{"sheet":"Trip Sheet","index":4,"n_rows":44,"n_cols":13,"rows_kept":44,"merged":[[5,2,5,4],[6,2,6,4],[7,2,7,4],[37,0,37,1],[37,2,37,4],[40,0,40,1],[40,2,40,4]]}
[]
[null,null,"ESKOM TRIP SHEET"]
[]
[" "]
[]
[null,"Contractor:"]
[null,"Project Name:"]
[null,"Project Number:"]
[]
["Date","Details of Journey (Departure and Arrival)","What material was transported","LDV Transport 4 x 2","LDV Transport 4 x 4","Transport for labour (minibus 13)","Transport for labour (minibus 23)","Transport truck 2 - 4 ton","Transport truck 5 - 8 ton","Transport truck 5 - 8 ton with crane","Transport truck 9 - 14 ton","Transport truck 9 - 14 ton with crane","Transport truck >22 ton"]
[{"$nulls":3}," "]
[{"$nulls":3}," "]
[]
[{"$nulls":3}," "]
[{"$nulls":3}," "]
[{"$nulls":3}," "]
[{"$nulls":3}," "]
[{"$nulls":3}," "]
[]
[]
[]
[{"$nulls":3}," "]
[{"$nulls":3}," "]
[null,null,"Total Kilometers:",{"$f":"SUM(D11:D23)","v":0},0,0,0,0,0,0,0,0,0]
[null,"Additional Totals","RATE:","KM's","PRICE:"]
[null,"LDV Transport 4 x 2",null,{"$f":"D24","v":0},{"$f":"D26*C26","v":{"v":0,"d":"R 0.00"}}]
[null,"LDV Transport 4 x 4",null,{"$f":"E24","v":0},{"$f":"D27*C27","v":{"v":0,"d":"R 0.00"}}]
[null,"Transport for labour (minibus 13)",null,{"$f":"F24","v":0},{"v":0,"d":"R 0.00"}]
[null,"Transport for labour (minibus 23)",null,{"$f":"G24","v":0},{"v":0,"d":"R 0.00"}]
[null,"Transport truck 2 - 4 ton",null,{"$f":"H24","v":0},{"v":0,"d":"R 0.00"}]
[null,"Transport truck 5 - 8 ton",null,{"$f":"I24","v":0},{"v":0,"d":"R 0.00"}]
[null,"Transport truck 5 - 8 ton with crane",null,{"$f":"J24","v":0},{"v":0,"d":"R 0.00"}]
[null,"Transport truck 9 - 14 ton",null,{"$f":"K24","v":0},{"v":0,"d":"R 0.00"}]
[null,"Transport truck 9 - 14 ton with crane",null,{"$f":"L24","v":0},{"v":0,"d":"R 0.00"}]
[null,"Transport truck >22 ton",null,{"$f":"M24","v":0},{"v":0,"d":"R 0.00"}]
[null,"Total amount",null,null,{"$f":"SUM(E26:E35)","v":0}]
[]
[" Contractor :",null,"Approved by (Project Co-Ordinator): "]
[]
[]
["Company Name: _____________________________________",null,"Name:__________________________________________"]
[]
[]
["Sinature : _________________________","Date:  _________________________","Signature: __________________","Date: ____________________"]